Cogmind - Beta 11 X9 @@@ ROGUE MODE // 2021.12.27 @ 22:16:40 // Winter2019/RPGLIKE Player: aoemica Result: Escaped singularity! Performance ------------- Evolutions (9) 4500 Regions Visited (36) 7200 Robots Destroyed (1994) 9970 Value Destroyed (107900) 107900 Prototype IDs (256) 5120 Alien Tech Used (10) 2000 Bonus (160913) 160913 TOTAL SCORE: 297603 Bonus ------- Triggered High Security 4500 High Alert Combat Kills 96574 Follower Combat Kills 972 Network Hubs Disabled 800 Aligned with FarCom 300 Met Data Miner 300 Used Data Conduit 3000 Triggered Deep Caves Wall 500 Exposed GOLEM Chamber 500 Met R17 at Cetus 500 Found Hidden Lab 3000 Met R17 at Research 2000 Pursued by Intercept 4500 Recovered Sigix Corpse 4000 Destroyed MAIN.C Guards 500 Met MAIN.C 5000 Destroyed MAIN.C Shell 5000 Destroyed MAIN.C 10000 Met Architect 300 Started Test 138-B 500 Destroyed A8 300 Destroyed A6 400 Destroyed A4 700 Destroyed A3 800 Destroyed A2 1000 Destroyed Architect 15000 Win 3000 Friendly Fire -3033 Cogmind --------- Core Integrity 840/1000 Matter 700/700 Energy 663/1130 System Corruption 0% Temperature Cool (12) Movement Hovering (26) Location Near Former Tau Ceti IV Parts ------- > --- POWER (2) -------- Graviton Reactor Zero-point Reactor > --- PROPULSION (6) --- Cooled Linear Gravjet Cooled Linear Gravjet Cooled Linear Gravjet Cooled Linear Gravjet Combat Linear Gravjet Combat Linear Gravjet > --- UTILITY (8) ------ Desublimator Experimental Target Analyzer Recoil Nullifier Advanced Kinecellerator Experimental Weapon Cycler Advanced Reaction Control System Advanced Phase Shifter 7V-RTL's Ultimate Field > --- WEAPON (5) ------- Linked Autogun Multirail Multirail Hypervelocity Multirail > --- INVENTORY (6) ---- Experimental Matter Compressor (500) Long-range Terrain Scanner Spacefold Activator Sigix Corpse Sigix Corpse Peak State ------------ > --- POWER ------------ Graviton Reactor Zero-point Reactor > --- PROPULSION ------- Cooled Linear Gravjet Cooled Linear Gravjet Cooled Linear Gravjet Cooled Linear Gravjet Combat Linear Gravjet Combat Linear Gravjet > --- UTILITY ---------- Experimental Target Analyzer Recoil Nullifier Advanced Kinecellerator Experimental Weapon Cycler Advanced Reaction Control System Advanced Phase Shifter 7V-RTL's Ultimate Field Spacefold Activator > --- WEAPON ----------- Linked Autogun Multirail Multirail Multirail > --- INVENTORY -------- Protomatter Experimental Matter Compressor Long-range Terrain Scanner Improved System Backup Module Transdimensional Reconstructor Subatomic Replicator [Rating: 213] Favorites ----------- Power Zionite Light DM Reactor Engine Improved Ion Engine Power Core Reinforced Fission Core Reactor Zionite Light DM Reactor Propulsion Cooled Linear Gravjet Treads Light Treads Leg Advanced Myomer Leg Hover Unit Cooled Linear Gravjet Flight Unit Improved Flight Unit Utility 7V-RTL's Ultimate Field Device 7V-RTL's Ultimate Field Storage Zionite Biocell Processor Experimental Targeting Computer Hackware Hacking Suite Protection Improved Light Armor Plating Artifact Spacefold Activator Weapon Autogun Energy Gun Heavy EM Pulse Gun Energy Cannon Beam Cannon Ballistic Gun Autogun Launcher Grenade Launcher Special Weapon Molecular Deconstructor Impact Weapon Core Stripper Build | -11 -10 -10 -9 -9 -9 -8 -8 -7 -7 -7 -7 -7 -6 -6 -6 -6 -6 -6 -6 -5 -5 -5 -5 -5 -5 -4 -4 -4 -3 -3 -2 -2 -2 -1 -1 -1 ------- Run | Scr Mat Min Mat Min Exi Min Mat Fac Low Low Zio Dee Pro Fac Was Fac Low Low Dat Pro Fac Ext Cet Arc Hub Fac Arm Lab Res Tes Res Qua Sec Acc Com Ac0 Slots Evolved 17 | 3 . . 3 . . . 3 . . . . 1 . . . 1 . . . . 1 . . . 1 . 1 . 1 . . . . 2 . . Power 1 | . . . . . . . 1 . . . . . . . . . . . . . . . . . . . . . . . . . . . . . Propulsion 5 | 1 . . . . . . 1 . . . . 1 . . . 1 . . . . . . . . . . 1 . . . . . . . . . Utility 7 | 1 . . 1 . . . 1 . . . . . . . . . . . . . 1 . . . 1 . . . 1 . . . . 1 . . Weapon 4 | 1 . . 2 . . . . . . . . . . . . . . . . . . . . . . . . . . . . . . 1 . . Parts Attached 257 | 3 5 5 30 . 12 4 9 8 . 1 10 26 . 11 . 13 . 2 4 . 9 . . . 4 2 8 9 1 9 2 2 11 17 31 9 Power 15 | . . 1 3 . 1 . 1 1 . . . 2 . . . . . . . . . . . . . . 2 1 . . . . 1 . 2 . Engine 3 | . . 1 2 . . . . . . . . . . . . . . . . . . . . . . . . . . . . . . . . . Core 4 | . . . 1 . 1 . 1 1 . . . . . . . . . . . . . . . . . . . . . . . . . . . . Reactor 8 | . . . . . . . . . . . . 2 . . . . . . . . . . . . . . 2 1 . . . . 1 . 2 . Propulsion 46 | 2 . 1 18 . 2 . 1 2 . . . 5 . . . 2 . . . . 5 . . . 1 2 3 . . . . . . . 2 . Treads 13 | 2 . 1 10 . . . . . . . . . . . . . . . . . . . . . . . . . . . . . . . . . Leg 11 | . . . 6 . 2 . 1 2 . . . . . . . . . . . . . . . . . . . . . . . . . . . . Wheel . | . . . . . . . . . . . . . . . . . . . . . . . . . . . . . . . . . . . . . Hover 20 | . . . . . . . . . . . . 5 . . . 2 . . . . 5 . . . 1 2 3 . . . . . . . 2 . Flight 2 | . . . 2 . . . . . . . . . . . . . . . . . . . . . . . . . . . . . . . . . Utility 138 | . 1 2 3 . 7 4 6 4 . . 10 15 . 6 . 9 . . 3 . 2 . . . 1 . 3 5 1 3 2 2 8 8 24 9 Device 103 | . 1 . . . 6 3 5 4 . . 10 8 . 2 . 7 . . 2 . 2 . . . 1 . 3 2 1 3 2 2 4 6 20 9 Storage 9 | . . . . . . . . . . . . 4 . 1 . . . . 1 . . . . . . . . 2 . . . . . 1 . . Processor 11 | . . 1 2 . 1 . 1 . . . . . . 1 . 2 . . . . . . . . . . . . . . . . . 1 2 . Hackware 1 | . . . . . . . . . . . . . . 1 . . . . . . . . . . . . . . . . . . . . . . Protection 8 | . . 1 1 . . 1 . . . . . 3 . 1 . . . . . . . . . . . . . 1 . . . . . . . . Artifact 6 | . . . . . . . . . . . . . . . . . . . . . . . . . . . . . . . . . 4 . 2 . Weapon 58 | 1 4 1 6 . 2 . 1 1 . 1 . 4 . 5 . 2 . 2 1 . 2 . . . 2 . . 3 . 6 . . 2 9 3 . Energy Gun 5 | . . . 1 . . . . . . . . . . . . . . . . . 1 . . . . . . 2 . 1 . . . . . . Energy Cannon 4 | . 2 . . . . . . . . . . . . . . . . . . . . . . . 1 . . . . 1 . . . . . . Ballistic Gun 41 | 1 . . 5 . 2 . 1 1 . 1 . 4 . 4 . 2 . 1 1 . 1 . . . 1 . . 1 . 3 . . 1 8 3 . Ballistic Cannon . | . . . . . . . . . . . . . . . . . . . . . . . . . . . . . . . . . . . . . Launcher 5 | . 2 1 . . . . . . . . . . . 1 . . . . . . . . . . . . . . . 1 . . . . . . Special Weapon 1 | . . . . . . . . . . . . . . . . . . 1 . . . . . . . . . . . . . . . . . . Impact Weapon 2 | . . . . . . . . . . . . . . . . . . . . . . . . . . . . . . . . . 1 1 . . Slashing Weapon . | . . . . . . . . . . . . . . . . . . . . . . . . . . . . . . . . . . . . . Piercing Weapon . | . . . . . . . . . . . . . . . . . . . . . . . . . . . . . . . . . . . . . Special Melee Weapon . | . . . . . . . . . . . . . . . . . . . . . . . . . . . . . . . . . . . . . Unidentified Prototypes 43 | . . . 1 . 6 2 . . . . 1 6 . 1 . 3 . 1 . . 1 . . . 1 . . 6 . 3 . . 6 2 1 2 Parts Lost 1 | . . . . . . . . . . . . . . . . . . . . . . . . . . . 1 . . . . . . . . . Power 1 | . . . . . . . . . . . . . . . . . . . . . . . . . . . 1 . . . . . . . . . Propulsion . | . . . . . . . . . . . . . . . . . . . . . . . . . . . . . . . . . . . . . Utility . | . . . . . . . . . . . . . . . . . . . . . . . . . . . . . . . . . . . . . Weapon . | . . . . . . . . . . . . . . . . . . . . . . . . . . . . . . . . . . . . . Highest Loss Streak 1 | . . . . . . . . . . . . . . . . . . . . . . . . . . . 1 . . . . . . . . . Average Slot Usage (%) 90 | . 83 92 99 100 99 99 99 100 100 100 100 95 78 78 78 79 80 80 80 80 80 81 81 81 81 82 82 82 83 83 84 84 83 95 94 95 Engine 1 | . 14 14 8 10 6 . . . . . . . . . . . . . . . . . . . . . . . . . . . . . . . Core 4 | . . . 3 . 3 10 14 15 15 15 15 2 . . . . . . . . . . . . . . . . . . . . . . . . Reactor 6 | . . . . . . . . . . . . 12 14 14 14 13 13 13 13 13 12 12 12 12 11 11 10 11 10 10 10 10 10 9 9 9 Treads 3 | . 28 28 23 20 12 . . . . . . . . . . . . . . . . . . . . . . . . . . . . . . . Leg 7 | . . . . . 7 20 22 23 23 23 23 20 . . . . . . . . . . . . . . . . . . . . . . . . Hover 16 | . . . . . . . . . . . . 2 28 28 28 31 33 33 33 33 30 31 31 31 30 29 31 33 31 31 31 31 31 29 28 28 Device 18 | . 12 7 . . 3 13 22 23 23 23 23 21 14 13 14 13 13 13 13 13 17 18 18 18 19 23 22 21 24 30 31 35 32 32 33 33 Storage 2 | . . . . . . . . . . . . . 7 7 7 6 6 6 6 6 6 6 6 6 5 5 5 4 5 . . . . . . . Processor 7 | . . 7 16 20 20 16 7 7 7 7 7 7 7 7 7 6 6 6 6 6 6 6 6 6 5 5 5 5 5 5 5 . . 3 3 4 Protection 1 | . . 6 11 10 6 . . . . . . . . . . . . . . . . . . . . . . . . . . . . . . . Energy Cannon 1 | . 13 14 5 . . . . . . . . . . . . . . . . . . . . . . . . . . . . . . . . . Ballistic Gun 17 | . . . 26 40 40 40 30 30 30 30 30 25 7 7 7 6 6 6 6 6 5 6 6 6 5 5 5 4 5 4 5 5 4 17 18 19 Naked Turns . | . . . . . . . . . . . . . . . . . . . . . . . . . . . . . . . . . . . . . Heaviest Build 103 | 8 12 17 22 22 40 60 68 69 69 69 69 73 57 57 57 57 57 57 57 57 59 59 59 59 61 61 66 74 68 73 74 75 82 102 101 103 Greatest Support 128 | 45 45 45 51 51 65 65 80 85 85 85 85 85 61 61 61 69 69 69 69 69 75 75 75 75 75 75 116 95 95 95 116 95 95 104 128 105 Greatest Overweight (x) 2 | . . . 2 . 2 . . . . . . 2 . . . . . . . . . . . . . 1 . . 1 . . . . 1 1 . Average Overweight (x) . | . . . . . . . . . . . . . . . . . . . . . . . . . . . . . . . . . . . . . Largest Inventory Capacity 6 | 1 2 2 2 2 2 2 3 3 3 3 3 4 4 4 4 4 4 4 4 4 4 4 4 4 4 4 4 4 4 4 4 5 6 6 6 6 Average Capacity 3 | . 1 2 2 2 2 2 2 3 3 3 3 3 4 4 4 4 4 4 4 4 4 4 4 4 4 4 4 4 4 4 4 4 5 6 6 6 Most Carried 6 | . 2 2 2 2 2 2 3 3 3 3 3 4 4 4 4 4 4 4 4 4 4 4 4 4 4 4 4 4 4 4 4 5 6 6 6 6 Average Carried 3 | . 1 2 1 2 1 1 2 3 3 3 3 3 4 3 4 3 4 4 4 4 4 4 4 4 4 4 4 3 4 3 3 3 5 5 5 5 Final Capacity 6 | 1 2 2 2 2 2 2 3 3 3 3 3 4 4 4 4 4 4 4 4 4 4 4 4 4 4 4 4 4 4 4 4 5 6 6 6 6 Final Carried 6 | . 2 2 2 2 2 1 3 3 3 3 3 4 4 4 4 4 4 4 4 4 4 4 4 4 4 4 4 4 4 4 4 5 6 6 6 5 Class Distribution -------------------- 47% | Scavenger-Gunner 14% | Hacker-Sprinter 11% | Hacker-Scout 7% | Hacker-Gunner 7% | Commander-Sprinter 4% | Mutant 3% | Scavenger-Mutant Dominant Class ---------------- Mutant | -10/Materials Mutant | -10/Mines Hacker-Gunner | -9/Materials Hacker-Gunner | -9/Mines Hacker-Gunner | -9/Exiles Scavenger-Mutant | -8/Mines Scavenger-Gunner | -8/Materials Scavenger-Gunner | -7/Factory Scavenger-Gunner | -7/Lower Caves Scavenger-Gunner | -7/Lower Caves Scavenger-Gunner | -7/Zion Scavenger-Gunner | -7/Deep Caves Scavenger-Gunner | -6/Proximity Caves Scavenger-Gunner | -6/Factory Scavenger-Gunner | -6/Waste Scavenger-Gunner | -6/Factory Scavenger-Gunner | -6/Lower Caves Scavenger-Gunner | -6/Lower Caves Scavenger-Gunner | -6/Data Miner Scavenger-Gunner | -5/Proximity Caves Scavenger-Gunner | -5/Factory Commander-Sprinter | -5/Extension Commander-Sprinter | -5/Cetus Commander-Sprinter | -5/Archives Hacker-Sprinter | -5/Hub_04(d) Hacker-Sprinter | -4/Factory Hacker-Sprinter | -4/Armory Hacker-Sprinter | -4/Lab Hacker-Scout | -3/Research Hacker-Scout | -3/Testing Hacker-Scout | -2/Research Hacker-Scout | -2/Quarantine Hacker-Scout | -2/Section 7 Hacker-Scout | -1/Access Hacker-Scout | -1/Command Hacker-Scout | -1/Access_0 Resources | -11 -10 -10 -9 -9 -9 -8 -8 -7 -7 -7 -7 -7 -6 -6 -6 -6 -6 -6 -6 -5 -5 -5 -5 -5 -5 -4 -4 -4 -3 -3 -2 -2 -2 -1 -1 -1 ----------- Run | Scr Mat Min Mat Min Exi Min Mat Fac Low Low Zio Dee Pro Fac Was Fac Low Low Dat Pro Fac Ext Cet Arc Hub Fac Arm Lab Res Tes Res Qua Sec Acc Com Ac0 Matter Collected 82148 | 200 173 97 903 127 812 1612 3562 1424 278 378 1756 2858 625 2405 478 5097 510 485 265 660 1650 3630 585 135 5768 6720 6635 238 1117 1238 497 365 1055 6998 16814 3998 Remotely 5071 | . . . . . . . 448 546 . . 743 2574 . . . . . . . . . . . . . . . . . . . . . . 760 . Salvage Created 144953 | . 826 113 1785 199 394 1921 9296 3210 556 1003 2631 7234 795 4045 478 7799 1005 447 396 873 2631 7877 635 371 10085 10376 9586 119 1114 1385 747 422 1839 13098 34315 5347 Parts 6108 | . 64 4 121 9 71 89 320 201 34 47 203 101 35 200 25 391 32 31 17 49 158 304 28 14 375 498 461 11 66 79 57 15 101 555 1033 309 Haulers Intercepted 44 | . 2 . 6 . . . 6 3 . . . . . 4 . 4 . . . . 2 . . . 5 3 . . 1 1 . . . 7 . . Recyclers Shooed 20 | . 3 1 2 . . 2 2 . . . . . . 1 . 2 . . . . 1 1 . . 2 . . . 1 1 . . . . 1 . Parts Field Recycled . | . . . . . . . . . . . . . . . . . . . . . . . . . . . . . . . . . . . . . Retrieved Matter . | . . . . . . . . . . . . . . . . . . . . . . . . . . . . . . . . . . . . . Parts Self-Destructed 202 | . . . . . . . . . 27 47 . . 35 . . . 12 35 . 46 . . . . . . . . . . . . . . . . Prevented 7 | . . . . . . . . . . . . . 6 . . . 1 . . . . . . . . . . . . . . . . . . . Kills | -11 -10 -10 -9 -9 -9 -8 -8 -7 -7 -7 -7 -7 -6 -6 -6 -6 -6 -6 -6 -5 -5 -5 -5 -5 -5 -4 -4 -4 -3 -3 -2 -2 -2 -1 -1 -1 ------- Run | Scr Mat Min Mat Min Exi Min Mat Fac Low Low Zio Dee Pro Fac Was Fac Low Low Dat Pro Fac Ext Cet Arc Hub Fac Arm Lab Res Tes Res Qua Sec Acc Com Ac0 Combat Hostiles Destroyed 2141 | . 17 19 35 4 8 7 139 59 9 17 12 105 20 55 6 130 16 12 4 19 35 125 13 4 136 154 166 2 16 18 12 5 21 187 496 58 Melee 1 | . . . . . . . . . . . . . . . . . . . . . . . . . . . . . . . . . 1 . . . Guns 2095 | . 1 . 29 4 8 7 139 59 9 17 12 105 20 53 6 130 16 12 4 19 35 125 13 4 136 154 166 2 16 18 12 5 20 185 496 58 Cannons 21 | . 11 4 6 . . . . . . . . . . . . . . . . . . . . . . . . . . . . . . . . . AOE 22 | . 5 15 . . . . . . . . . . . 2 . . . . . . . . . . . . . . . . . . . . . . Classes Destroyed 40 | . 8 3 4 . 2 . 3 3 . . 3 3 1 1 1 1 1 . . 1 . . . . . . 1 . . 1 . . . 2 1 . Worker 55 | . 3 . . . . 5 5 4 . . . . . 10 . 4 . . . . . 2 . . 4 1 . . . 1 . . 1 7 8 . Builder 47 | . 4 . 1 . . 12 6 . . . . . . 4 . 4 . . . . 1 4 . . 4 1 . . . . . . . 6 . . Tunneler 9 | . . 1 . . . 2 2 . . . . . . . . 2 . . . . . . . . . 1 . . . . . . . 1 . . Hauler 44 | . 2 . 6 . . . 6 3 . . . . . 4 . 4 . . . . 2 . . . 5 3 . . 1 1 . . . 7 . . Recycler 69 | . . . 1 2 . 15 8 1 . . . . . 3 . 6 . . . . 2 5 . . 3 6 . . 2 3 . . 3 5 4 . Carrier 12 | . . . . . . . 4 1 . . . . . . . . . . . . . . . . . . . . . . . . . 2 5 . Minesweeper 1 | . . . . . . . . . . . . . 1 . . . . . . . . . . . . . . . . . . . . . . . Mechanic 53 | . 1 . 1 . . . 14 3 . . . . . 2 . 3 . . . . . 1 . . 4 7 4 . . . . . . 5 8 . Operator 31 | . 3 . 1 . . . 4 1 . . . . . 4 . 1 . . . . 2 . . . 4 1 1 . 1 2 . . . 1 5 . Drone 1 | . . . . . . . . . . . . . . . . . . . . . . . . . . . 1 . . . . . . . . . Turret 1 | . . . . . 1 . . . . . . . . . . . . . . . . . . . . . . . . . . . . . . . Watcher 76 | . 3 . 4 . . . 4 1 . . . . . 5 . 4 . . . . 4 3 2 . 5 8 3 . 4 3 1 1 2 8 11 . Swarmer 155 | . 3 . 7 4 . 3 7 . 4 5 . . 6 7 . 3 . . . . . 9 5 . . 17 . . 7 . 3 . 5 19 41 . Cutter 28 | . . . . . . . . . . . . . . . . 3 . . . . 3 . . . 2 . 3 . . . . . 3 3 11 . Saboteur 51 | . . . . . . . . . . . . . . 1 . 6 . . . . 1 2 . . 3 6 7 . . 1 . . . 3 21 . Grunt 709 | . 14 . 20 . . 3 88 29 . 8 . . 8 32 . 57 2 5 . 9 8 50 . . 47 54 42 1 . 6 . 2 4 67 153 . Brawler 111 | . . . 1 . . . 14 5 . . . . 1 1 . 15 . . . 1 . 7 . . 6 8 11 . . 1 . . . 10 30 . Duelist 127 | . . . 1 . . . 13 3 . 1 . . 2 4 . 9 1 . . 3 1 6 . . 12 6 15 . . . . . . 12 38 . Protector 79 | . . . . . . . 7 1 . . . . . 1 . 8 . . . . 1 6 . . 8 8 11 . . . . . . 7 21 . Sentry 104 | . . . 6 . . . 9 2 1 2 . . 2 6 . 6 . . . 1 . 13 . 4 13 9 8 . . . 1 . . 17 4 . Demolisher 28 | . . 2 . . . . . . . . . . . . . 1 . . . . . 8 . . 1 . 4 . . . . . . . 12 . Specialist 48 | . . . . . . . . 6 . . . . . . . . . 3 . . 2 10 . . 5 . 2 . . . . . . . 20 . Hunter 159 | . . . . . . . . 9 3 1 . . . . . 11 . 2 . . 6 2 . . 7 14 26 . 6 3 2 3 . 16 48 . Programmer 194 | . . . . . . . . 2 1 . . . . 3 . 8 2 1 . 4 5 11 . . 16 24 32 . . 4 2 . 4 12 63 . Heavy 27 | . . . . . . . 1 2 . . . . . . . 3 . . . . 5 . . . 2 4 1 . . . 1 . 1 4 3 . Behemoth 16 | . . . . . . . . . . . . . 1 . . . . 1 . 1 . 1 . . 1 . 1 . 1 . 1 . 2 3 3 . Compactor 6 | . . . . . . . . . . . . . . . 6 . . . . . . . . . . . . . . . . . . . . . Cetus Guard 8 | . . . . . . . . . . . . . . . . . . . . . . . 8 . . . . . . . . . . . . . S7 Guard 1 | . . . . . . . . . . . . . . . . . . . . . . . . . . . . . . . . . 1 . . . M Guard 2 | . . . . . . . . . . . . . . . . . . . . . . . . . . . . . . . . . . . 2 . Enhanced Grunt 36 | . . . . . . . . . . . . . . . . . . . 4 . . . . . . . . . . . . . . . . 32 Enhanced Sentry 3 | . . . . . . . . . . . . . . . . . . . . . . . . . . . . . . . . . . . . 3 Enhanced Hunter 8 | . . . . . . . . . . . . . . . . . . . . . . . . . . . . . . . . . . . . 8 Enhanced Programmer 9 | . . . . . . . . . . . . . . . . . . . . . . . . . . . . . . . . . . . . 9 Lightning 9 | . . . . . . . . . . . . . . . . . . . . . . . . . 9 . . . . . . . . . . . Tracker 19 | . . . . . . . . . . . . . . . . . . . . . 2 . . . 2 2 1 . 2 1 2 . 2 5 . . Combat Programmer 15 | . . . . . . . . . . . . . . . . . . . . . 2 . . . 2 2 1 . . 1 . . . 5 2 . Investigator 3 | . . . . . . . . . . . . . . . . . . . . . . . . . . . . . . 1 . . . 1 1 . Striker 15 | . . . . . . . . . . . . . . . . . . . . . . . . . . . . . . . . . . 2 13 . Executioner 13 | . . . . . . . . . . . . . . . . . . . . . . . . . . . . . . . . . . 3 10 . Alpha 7 2 | . . . . . . . . . . . . . . . . . . . . . . . . . . . . . . . . . . . 2 . Protovariant P 1 | . . . . . . . . . . . . . . . . . . . . . . . . . . . . . . 1 . . . . . . Zionite 77 | . . . . . 8 . . . . . 69 . . . . . . . . . . . . . . . . . . . . . . . . . Z-Light 9 | . . . . . . . . . . . . 9 . . . . . . . . . . . . . . . . . . . . . . . . Packrat 1 | . . . . . . . . . . . . . . . . . . . . 1 . . . . . . . . . . . . . . . . Samaritan 1 | . . . . . . . . . . . . . . . . . . . . 1 . . . . . . . . . . . . . . . . Tinkerer 7 | . . . . . . . . . . . 7 . . . . . . . . . . . . . . . . . . . . . . . . . Thief 1 | . . . . . . . . . . . . . . . . . 1 . . . . . . . . . . . . . . . . . . . Assembler 2 | . . . . . . . . . . . . 2 . . . . . . . . . . . . . . . . . . . . . . . . Assembled 61 | . . 17 . . 7 . . . . . . 37 . . . . . . . . . . . . . . . . . . . . . . . . Golem 59 | . . . . . . . . . . . . 59 . . . . . . . . . . . . . . . . . . . . . . . . Thug 6 | . . . . . . . . . . . 2 . . . . . 4 . . . . . . . . . . . . . . . . . . . Savage 6 | . . . . . . . . . . . 1 . . . . . 5 . . . . . . . . . . . . . . . . . . . Butcher 1 | . . . . . . . . . . . 1 . . . . . . . . . . . . . . . . . . . . . . . . . Marauder 2 | . . . . . . . . . . . 2 . . . . . . . . . . . . . . . . . . . . . . . . . Mutant 6 | . . . . . . . . . . . 5 . . . . . 1 . . . . . . . . . . . . . . . . . . . Best Kill Streak 91 | . 4 17 9 4 7 6 26 21 4 7 20 40 10 11 6 11 6 6 4 7 17 30 5 4 37 35 27 2 14 7 4 3 15 55 91 9 Combat Bots Only 91 | . 3 17 9 4 7 3 23 20 4 7 2 36 10 9 6 11 6 6 4 7 10 27 5 4 37 32 27 2 5 4 4 3 13 45 91 9 Max Kills in Single Turn 5 | . 2 3 2 2 2 2 5 3 2 2 2 5 2 4 1 3 1 1 1 2 2 3 3 1 3 2 2 1 2 2 1 1 2 3 5 3 Gunslinging 2 | . . . 1 1 1 . 2 1 1 1 1 2 . . . . . . . . . . . . . . . . . . . . . 2 2 1 Exploded 3 | . 2 3 . . . . . . . . . . . 2 . . . . . . . . . . . . . . . . . . . . . . Melee 1 | . . . . . . . . . . . . . . . . . . . . . . . . . . . . . . . . . 1 . . . Uniques/NPCs Destroyed 15 | . . . . . 4 1 . . . . 1 . . . . . . . . . . . . . . . . 1 . . . . . . 2 6 8R-AWN (-9/Exiles) EX-DEC (-9/Exiles) EX-BIN (-9/Exiles) EX-HEX (-9/Exiles) 7V-RTL (-8/Mines) Imprinter (-7/Zion) A5 (-4/Lab) MAIN.C Shell (-1/Command) MAIN.C (-1/Command) A8 (-1/Access_0) A6 (-1/Access_0) A2 (-1/Access_0) A4 (-1/Access_0) A3 (-1/Access_0) Architect (-1/Access_0) Combat | -11 -10 -10 -9 -9 -9 -8 -8 -7 -7 -7 -7 -7 -6 -6 -6 -6 -6 -6 -6 -5 -5 -5 -5 -5 -5 -4 -4 -4 -3 -3 -2 -2 -2 -1 -1 -1 -------- Run | Scr Mat Min Mat Min Exi Min Mat Fac Low Low Zio Dee Pro Fac Was Fac Low Low Dat Pro Fac Ext Cet Arc Hub Fac Arm Lab Res Tes Res Qua Sec Acc Com Ac0 Damage Taken 11749 | . 421 732 789 43 479 234 559 968 54 82 159 577 51 61 . 195 . 47 23 32 164 247 50 5 699 354 663 22 90 53 89 90 328 1177 1374 838 Core 9126 | . 332 592 565 33 346 182 434 750 35 59 116 423 36 41 . 146 . 34 18 25 128 191 39 4 555 282 512 17 68 39 68 75 285 957 1092 647 Absorbed by Shields 24803 | . . . . . . 11 1230 1021 197 279 546 1427 174 203 . 659 . 161 57 110 538 836 168 18 2234 1163 2203 71 304 185 293 307 714 3103 3911 2680 Redirected to Core 7460 | . 290 484 499 33 239 182 334 651 30 40 87 374 36 37 . 115 . 34 18 21 105 161 33 4 462 246 451 10 58 35 68 51 131 646 905 590 Core Remaining (%) 88 | 100 . 13 . . . 100 100 . . . . . 97 . . . . . . 99 . . . . 100 . . 100 . 100 . . 75 . . 84 Volleys Fired 4808 | . 91 28 76 6 45 141 236 125 30 32 140 144 42 152 40 323 34 31 15 45 103 242 39 9 381 440 439 24 61 80 36 21 64 288 608 197 Largest 4 | . 2 1 4 4 4 4 4 4 4 4 4 4 1 1 1 1 1 1 1 1 1 1 1 1 1 1 1 1 1 1 1 1 1 4 4 4 Hottest 180 | . 110 60 128 92 106 106 106 106 106 108 108 108 60 60 60 60 60 60 60 60 60 60 60 60 60 60 60 60 60 60 60 60 60 180 170 170 Shots Fired 10039 | . 97 28 217 24 160 313 901 439 76 122 550 505 42 152 40 323 34 31 15 45 103 242 39 9 380 440 437 24 61 80 36 21 64 1048 2223 718 Gun 9887 | . 9 . 181 24 160 313 901 439 76 122 550 505 42 152 40 323 34 31 15 45 103 242 39 9 380 440 437 24 61 80 36 21 64 1048 2223 718 Cannon 136 | . 79 21 36 . . . . . . . . . . . . . . . . . . . . . . . . . . . . . . . . . Launcher 16 | . 9 7 . . . . . . . . . . . . . . . . . . . . . . . . . . . . . . . . . . Special . | . . . . . . . . . . . . . . . . . . . . . . . . . . . . . . . . . . . . . Kinetic 9876 | . 3 . 176 24 160 313 901 439 76 122 550 505 42 152 40 323 34 31 15 45 103 242 39 9 380 440 437 24 61 80 36 21 64 1048 2223 718 Thermal 142 | . 85 21 36 . . . . . . . . . . . . . . . . . . . . . . . . . . . . . . . . . Explosive 16 | . 9 7 . . . . . . . . . . . . . . . . . . . . . . . . . . . . . . . . . . Electromagnetic 5 | . . . 5 . . . . . . . . . . . . . . . . . . . . . . . . . . . . . . . . . Robot Hit Streak 82 | . 21 8 28 14 29 53 24 56 15 34 41 43 26 39 32 71 20 28 51 57 51 45 46 20 69 47 65 43 28 61 40 13 25 59 82 53 Robot Miss Streak 10 | . 4 3 3 2 2 3 3 3 2 2 2 4 2 3 2 4 10 1 1 2 3 3 2 1 7 5 3 3 3 2 1 3 4 4 7 3 Penetration Max 2 | . . . . . 1 2 2 2 2 1 1 2 . . . . . . . . . . . . . . . . . . . . . 2 2 1 Secondary Targets 314 | . . . 2 1 4 1 35 19 3 3 11 19 . . . . . . . . . . . . . . . . . . . . . 67 136 13 Max Gunslinging Chain 2 | . . . 1 1 1 1 2 2 1 1 1 2 . . . . . . . . . . . . . . . . . . . . . 2 2 1 Shots Hit Robots 8077 | . 65 15 152 14 117 202 643 323 27 98 357 384 39 138 40 308 27 29 15 44 94 240 39 9 361 408 414 21 50 70 34 16 58 871 1716 639 Core Hits 6770 | . 43 41 75 7 44 95 342 152 19 35 114 253 39 145 22 344 30 27 20 40 104 292 38 12 400 473 487 17 53 63 32 15 61 670 1704 462 Critical Kills 485 | . 2 . 1 . 2 11 75 38 8 6 20 87 . . . . . . . . . . . . . . . . . . . . . 54 142 39 Critical Parts Destroyed 823 | . . . . . 9 25 139 51 5 18 38 45 . . . . . . . . . . . . . . . . . . . . . 104 270 119 Critical Strikes 1527 | . 2 . 1 . 12 43 220 93 13 25 69 147 . . . . . . . . . . . . . . . . . . . . . 175 454 273 Meltdown 2 | . 2 . . . . . . . . . . . . . . . . . . . . . . . . . . . . . . . . . . . Destroy 1525 | . . . 1 . 12 43 220 93 13 25 69 147 . . . . . . . . . . . . . . . . . . . . . 175 454 273 Melee Attacks 8 | . . . . . . . . . . . . . . . . . . . . . . . . . . . . . . . . . 4 4 . . Kinetic 8 | . . . . . . . . . . . . . . . . . . . . . . . . . . . . . . . . . 4 4 . . Impact . | . . . . . . . . . . . . . . . . . . . . . . . . . . . . . . . . . . . . . Slashing . | . . . . . . . . . . . . . . . . . . . . . . . . . . . . . . . . . . . . . Piercing . | . . . . . . . . . . . . . . . . . . . . . . . . . . . . . . . . . . . . . Sneak Attacks 4 | . . . . . . . . . . . . . . . . . . . . . . . . . . . . . . . . . 4 . . . Combat Hostiles 1 | . . . . . . . . . . . . . . . . . . . . . . . . . . . . . . . . . 1 . . . Follow-up Attacks . | . . . . . . . . . . . . . . . . . . . . . . . . . . . . . . . . . . . . . Damage Inflicted 437929 | . 1577 1378 2561 264 1883 4065 14479 6184 515 1691 5657 8051 3197 10837 3617 24201 2690 2192 1369 3936 8168 22807 3640 790 31130 34706 38522 1461 4020 7659 3519 1276 6423 42511 106630 24323 Guns 431158 | . 43 . 1963 247 1883 3836 14331 6125 509 1691 5657 8051 3197 9973 3617 24201 2690 2192 1360 3936 8168 22807 3640 790 31130 34706 37858 1461 4020 7659 3519 1276 5520 42236 106543 24323 Cannons 1925 | . 1064 299 562 . . . . . . . . . . . . . . . . . . . . . . . . . . . . . . . . . Explosions 3114 | . 455 1044 . . . . . . . . . . . 864 . . . . . . . . . . . . 664 . . . . . . . 87 . Melee 1092 | . . . . . . . . . . . . . . . . . . . . . . . . . . . . . . . . . 903 189 . . Ramming 640 | . 15 35 36 17 . 229 148 59 6 . . . . . . . . . 9 . . . . . . . . . . . . . . 86 . . Kinetic 432170 | . 6 . 1920 247 1883 3836 14331 6125 509 1691 5657 8051 3197 9973 3617 24201 2690 2192 1360 3936 8168 22807 3640 790 31130 34706 37858 1461 4020 7659 3519 1276 6423 42425 106543 24323 Thermal 2789 | . 1101 299 562 . . . . . . . . . . 827 . . . . . . . . . . . . . . . . . . . . . . Explosive 2287 | . 455 1044 . . . . . . . . . . . 37 . . . . . . . . . . . . 664 . . . . . . . 87 . Electromagnetic 43 | . . . 43 . . . . . . . . . . . . . . . . . . . . . . . . . . . . . . . . . Impact . | . . . . . . . . . . . . . . . . . . . . . . . . . . . . . . . . . . . . . Slashing . | . . . . . . . . . . . . . . . . . . . . . . . . . . . . . . . . . . . . . Piercing . | . . . . . . . . . . . . . . . . . . . . . . . . . . . . . . . . . . . . . Highest Corruption 11 | . . . . . . . . . 2 2 2 . . . . 1 . . . . 2 1 . . 11 2 3 2 . 1 . . 4 2 4 . Average Corruption 2 | . . . . . . . . . 2 2 2 . . . . 1 . . . . 1 1 . . 5 1 1 1 . 1 . . 2 1 1 . Corruption Purged 64 | . . . . . . . . . . . . . . . . 2 . . . . 2 2 . . 24 4 9 1 . 2 . . . 4 14 . Effects 54 | . . . . . . . . . 1 16 . . . . . . . . . . . . . . 18 3 3 1 . . . . 2 1 9 . Message Errors 16 | . . . . . . . . . 1 6 . . . . . . . . . . . . . . 3 . 1 . . . . . . . 5 . Matter Fused 4 | . . . . . . . . . . . . . . . . . . . . . . . . . 4 . . . . . . . . . . . Heat Flow Errors 6 | . . . . . . . . . . 3 . . . . . . . . . . . . . . 1 . . . . . . . 1 . 1 . Energy Discharges 12 | . . . . . . . . . . 3 . . . . . . . . . . . . . . 6 1 . 1 . . . . 1 . . . Parts Rejected 1 | . . . . . . . . . . . . . . . . . . . . . . . . . 1 . . . . . . . . . . . Data Loss (minor) 5 | . . . . . . . . . . 2 . . . . . . . . . . . . . . 1 2 . . . . . . . . . . Data Loss (major) 1 | . . . . . . . . . . . . . . . . . . . . . . . . . 1 . . . . . . . . . . . Weapon Failures 9 | . . . . . . . . . . 2 . . . . . . . . . . . . . . 1 . 2 . . . . . . 1 3 . Overload Shots . | . . . . . . . . . . . . . . . . . . . . . . . . . . . . . . . . . . . . . Overflow Damage 192 | . 38 64 . . . 1 1 . 1 . . . . 6 . . . . . . . . . . . . 9 . . . . . . 46 26 . Projectiles 37 | . 23 14 . . . . . . . . . . . . . . . . . . . . . . . . . . . . . . . . . . Explosions 106 | . 15 50 . . . . . . . . . . . 6 . . . . . . . . . . . . 9 . . . . . . . 26 . Melee 49 | . . . . . . 1 1 . 1 . . . . . . . . . . . . . . . . . . . . . . . . 46 . . Knockbacks 2 | . . . . . . 1 . . . . . . . . . . . . . . . . . . . . . . . . . . . 1 . . Impact 2 | . . . . . . 1 . . . . . . . . . . . . . . . . . . . . . . . . . . . 1 . . Kinetic . | . . . . . . . . . . . . . . . . . . . . . . . . . . . . . . . . . . . . . Secondary . | . . . . . . . . . . . . . . . . . . . . . . . . . . . . . . . . . . . . . Self-Inflicted Damage 89 | . 2 . 40 . . . . . . . . . . . . . . . 4 . . . . . . . . . . . . . . 43 . . Shots 2 | . 1 . 1 . . . . . . . . . . . . . . . . . . . . . . . . . . . . . . . . . Rammed 32 | . 3 11 12 4 . . . . . . . . . . . . . . 1 . . . . . . . . . . . . . . 1 . . Targets Rammed 95 | . 5 11 12 4 . 43 11 6 1 . . . . . . . . . 1 . . . . . . . . . . . . . . 1 . . Kicked 61 | . . . . . . 43 11 6 1 . . . . . . . . . . . . . . . . . . . . . . . . . . . Crushed 2 | . 2 . . . . . . . . . . . . . . . . . . . . . . . . . . . . . . . . . . . Highest Temperature 246 | . 15 . 57 20 182 127 246 151 48 233 72 70 84 117 117 117 84 84 84 84 132 123 150 . 220 150 183 56 48 100 88 4 70 58 33 . Average Temperature 41 | . 9 . 14 9 40 25 66 30 17 40 24 25 50 47 50 51 48 48 37 40 59 51 59 . 57 49 57 33 31 37 38 3 33 15 14 . Received Heat Transfer 1703 | . 234 27 228 . 100 36 187 401 3 31 14 67 5 22 . 13 . . 2 2 7 20 . . 39 19 35 . 2 1 8 6 23 56 77 38 Siege Activations . | . . . . . . . . . . . . . . . . . . . . . . . . . . . . . . . . . . . . . Robots Corrupted . | . . . . . . . . . . . . . . . . . . . . . . . . . . . . . . . . . . . . . Combat Hostiles . | . . . . . . . . . . . . . . . . . . . . . . . . . . . . . . . . . . . . . Parts Fried 5 | . . . . . . 1 . . . . . . . . . . . . . . . . . . 1 . . . . . . . . 3 . . Impact Corruptions 5 | . . . . . . 1 1 . 1 . . . . . . . . . . . . . . . . . . . . . . . . 2 . . Robots Melted 2 | . 2 . . . . . . . . . . . . . . . . . . . . . . . . . . . . . . . . . . . Combat Hostiles . | . . . . . . . . . . . . . . . . . . . . . . . . . . . . . . . . . . . . . Parts Melted 16 | . 7 1 3 . . . . 1 . . . . . . . . . . . . . . . . 1 . . . . . . . . 2 1 . Heat Transferred 4582 | . 2331 629 1147 . . . . . . . . . . 475 . . . . . . . . . . . . . . . . . . . . . . Parts Sabotaged 5 | . . . . . . . . . . . . . . . . 1 . . . . . . . . . . 1 . . . . . . . 3 . Parts Stolen . | . . . . . . . . . . . . . . . . . . . . . . . . . . . . . . . . . . . . . Parts Stripped . | . . . . . . . . . . . . . . . . . . . . . . . . . . . . . . . . . . . . . Power Chain Reactions 1 | . . . 1 . . . . . . . . . . . . . . . . . . . . . . . . . . . . . . . . . Missiles Intercepted . | . . . . . . . . . . . . . . . . . . . . . . . . . . . . . . . . . . . . . Alert | -11 -10 -10 -9 -9 -9 -8 -8 -7 -7 -7 -7 -7 -6 -6 -6 -6 -6 -6 -6 -5 -5 -5 -5 -5 -5 -4 -4 -4 -3 -3 -2 -2 -2 -1 -1 -1 ------- Run | Scr Mat Min Mat Min Exi Min Mat Fac Low Low Zio Dee Pro Fac Was Fac Low Low Dat Pro Fac Ext Cet Arc Hub Fac Arm Lab Res Tes Res Qua Sec Acc Com Ac0 Peak Influence 15253 | . 372 144 625 343 . 236 3123 2691 . . . . . 1129 382 3049 . . . . 896 3925 2722 1316 2751 4984 6247 . 414 718 430 453 1105 5804 15253 . Initial 3714 | . . 144 . 243 . . . 1420 . . . . . 154 375 . . . . . 151 424 2197 1088 269 1347 2441 . . 99 200 241 173 662 3714 . Average 1821 | . 207 59 280 253 . 72 945 1638 . . . . . 670 188 1475 . . . . 570 1531 2544 1020 1082 2881 3773 . 268 466 225 323 723 3210 10080 . Maximum Alert Level 5 | . 1 . 2 1 . 1 5 5 . . . . . 4 1 5 . . . . 3 5 5 4 5 5 5 . 2 3 2 2 4 5 5 . Low Security (%) 16 | 100 40 100 42 34 . 94 6 . . . . . . 10 68 11 . . . . . . . . . . . . 29 10 36 . 6 . . . Level 1 10 | . 59 . 17 65 . 5 6 . . . . . . 18 31 9 . . . . 34 . . . 2 . . . 46 20 54 77 8 . . . Level 2 10 | . . . 39 . . . 12 . . . . . . 11 . 7 . . . . 27 4 . . 11 . . . 23 61 9 22 23 1 . . Level 3 21 | . . . . . . . 44 . . . . . . 59 . 7 . . . . 37 40 . 57 42 3 . . . 7 . . 56 14 . . Level 4 13 | . . . . . . . 23 75 . . . . . . . 8 . . . . . 10 . 42 31 14 . . . . . . 5 12 . . Level 5 9 | . . . . . . . . 2 . . . . . . . 49 . . . . . 31 100 . 5 12 21 . . . . . . 8 14 . High Security 17 | . . . . . . . 6 22 . . . . . . . 5 . . . . . 12 . . 7 69 78 . . . . . . 63 85 . Max Security . | . . . . . . . . . . . . . . . . . . . . . . . . . . . . . . . . . . . . . Sterilizations 7 | . . . . . . . 1 . . . . . . . . 1 . . . . . 1 . . 1 1 1 . . . . . . 1 . . Squads Dispatched 407 | . 6 . 9 . . . 33 25 . . . . . 13 . 33 . . . 1 12 17 . . 38 31 40 . 10 4 4 5 9 46 71 . Investigation 16 | . 2 . 4 . . . 3 2 . . . . . . . 2 . . . . . . . . . . . . 1 . . 1 . 1 . . Extermination 22 | . . . . . . . . 1 . . . . . 3 . 6 . . . . 1 . . . 8 1 . . . 1 . . . 1 . . Reinforcement 100 | . 4 . 3 . . . 2 5 . . . . . 5 . 7 . . . . 7 . . . 9 3 1 . 2 . 1 3 5 8 35 . Assault 217 | . . . 2 . . . 25 17 . . . . . 4 . 18 . . . 1 . 17 . . 17 23 37 . . 1 . . 1 18 36 . Garrison 20 | . . . . . . . 3 . . . . . . 1 . . . . . . . . . . . 1 . . 3 . . 1 . 11 . . Intercept 32 | . . . . . . . . . . . . . . . . . . . . . 4 . . . 4 3 2 . 4 2 3 . 3 7 . . Construction Impeded 5 | . . . 1 . . . . . . . . . . . . 1 . . . . . . . . 1 . . . . . . . . 2 . . Haulers Reinforced 9 | . . . . . . . . . . . . . . 2 . 1 . . . . . . . . 2 . . . 1 . . . . 3 . . Active Scanning Responses . | . . . . . . . . . . . . . . . . . . . . . . . . . . . . . . . . . . . . . Cargo Convoy Interrupts 3 | . . . . . . . . 1 . . . . . . . 1 . . . . 1 . . . . . . . . . . . . . . . Stealth | -11 -10 -10 -9 -9 -9 -8 -8 -7 -7 -7 -7 -7 -6 -6 -6 -6 -6 -6 -6 -5 -5 -5 -5 -5 -5 -4 -4 -4 -3 -3 -2 -2 -2 -1 -1 -1 --------- Run | Scr Mat Min Mat Min Exi Min Mat Fac Low Low Zio Dee Pro Fac Was Fac Low Low Dat Pro Fac Ext Cet Arc Hub Fac Arm Lab Res Tes Res Qua Sec Acc Com Ac0 Distress Signals 47 | . 1 . 2 . . . 3 1 . . . . . 2 . . . . . . . 2 . . . 5 5 . 4 2 1 . 2 8 9 . Communications Jammed . | . . . . . . . . . . . . . . . . . . . . . . . . . . . . . . . . . . . . . Distress Signals . | . . . . . . . . . . . . . . . . . . . . . . . . . . . . . . . . . . . . . Times Spotted 2781 | . 29 22 52 8 25 7 209 90 8 17 63 97 20 66 6 165 13 11 4 20 35 145 14 4 179 203 269 4 30 23 18 22 42 232 563 66 Peak Tracking Total 42 | . 4 16 7 4 9 4 21 14 4 7 4 29 6 6 3 10 3 4 4 7 11 26 4 1 13 16 26 3 6 3 7 12 13 15 42 6 Tactical Retreats 73 | . 1 . 1 . 2 1 5 2 . . 2 4 . 1 . 2 . . . . . 1 . . 3 4 10 . . . 1 2 3 10 18 . Traps | -11 -10 -10 -9 -9 -9 -8 -8 -7 -7 -7 -7 -7 -6 -6 -6 -6 -6 -6 -6 -5 -5 -5 -5 -5 -5 -4 -4 -4 -3 -3 -2 -2 -2 -1 -1 -1 ------- Run | Scr Mat Min Mat Min Exi Min Mat Fac Low Low Zio Dee Pro Fac Was Fac Low Low Dat Pro Fac Ext Cet Arc Hub Fac Arm Lab Res Tes Res Qua Sec Acc Com Ac0 Traps Triggered 31 | . . 1 2 . . . 2 . . . . . . 1 . . . . . . 2 . . . 2 3 6 . 2 . . 2 1 1 6 . Indirectly . | . . . . . . . . . . . . . . . . . . . . . . . . . . . . . . . . . . . . . Trap Hack Attempts . | . . . . . . . . . . . . . . . . . . . . . . . . . . . . . . . . . . . . . Triggered . | . . . . . . . . . . . . . . . . . . . . . . . . . . . . . . . . . . . . . Disarmed . | . . . . . . . . . . . . . . . . . . . . . . . . . . . . . . . . . . . . . Reprogrammed 6 | . . . . . . . . . . . . . . . . 6 . . . . . . . . . . . . . . . . . . . . Reused 2 | . . . . . . . . . . . . . . . . 2 . . . . . . . . . . . . . . . . . . . . Traps Extracted . | . . . . . . . . . . . . . . . . . . . . . . . . . . . . . . . . . . . . . Installed . | . . . . . . . . . . . . . . . . . . . . . . . . . . . . . . . . . . . . . Triggered 6 | . . . . . . . . 1 . . . . 1 . . 2 2 . . . . . . . . . . . . . . . . . . . Machines | -11 -10 -10 -9 -9 -9 -8 -8 -7 -7 -7 -7 -7 -6 -6 -6 -6 -6 -6 -6 -5 -5 -5 -5 -5 -5 -4 -4 -4 -3 -3 -2 -2 -2 -1 -1 -1 ---------- Run | Scr Mat Min Mat Min Exi Min Mat Fac Low Low Zio Dee Pro Fac Was Fac Low Low Dat Pro Fac Ext Cet Arc Hub Fac Arm Lab Res Tes Res Qua Sec Acc Com Ac0 Machines Disabled 164 | . 2 . . . 13 4 15 6 . 2 5 2 1 26 . 5 . 2 . 1 . 2 . 2 5 16 13 5 1 7 1 4 9 2 8 5 Max in Single Turn 5 | . 1 . . . 2 3 3 1 . 1 1 1 1 5 . 1 . 2 . 1 . . . 1 1 1 1 2 1 2 1 1 2 1 2 1 Garrison Access 17 | . . . . . . . . 3 . . . . . 3 . 1 . . . . 1 . . . . 2 . . 1 1 . 1 1 3 . . Phase Generator 1 | . . . . . . . . . . . . . . . . . . . . . . . . . . . . . . . . . . . 1 . Network Hub 4 | . . . . . . . . . . . . . . . . . . . . . . . . . 4 . . . . . . . . . . . Machines Sabotaged . | . . . . . . . . . . . . . . . . . . . . . . . . . . . . . . . . . . . . . Garrisons Compromised 1 | . . . . . . . . 1 . . . . . . . . . . . . . . . . . . . . . . . . . . . . Overloaded Fab Kills . | . . . . . . . . . . . . . . . . . . . . . . . . . . . . . . . . . . . . . Hacking | -11 -10 -10 -9 -9 -9 -8 -8 -7 -7 -7 -7 -7 -6 -6 -6 -6 -6 -6 -6 -5 -5 -5 -5 -5 -5 -4 -4 -4 -3 -3 -2 -2 -2 -1 -1 -1 --------- Run | Scr Mat Min Mat Min Exi Min Mat Fac Low Low Zio Dee Pro Fac Was Fac Low Low Dat Pro Fac Ext Cet Arc Hub Fac Arm Lab Res Tes Res Qua Sec Acc Com Ac0 Machines Accessed 167 | . 6 1 11 . 2 1 8 9 1 1 . . . 20 . 23 2 . 3 . 10 7 . . 8 10 5 . 7 8 4 4 9 4 2 1 Terminals 110 | . 4 . 8 . . 1 7 7 1 1 . . . 13 . 13 . . . . 7 7 . . 8 5 3 . 3 6 3 2 7 2 2 . Fabricators 18 | . . . . . . . . . . . . . . 3 . 4 . . . . 2 . . . . 2 2 . 3 1 1 . . . . . Repair Stations 2 | . . . 1 . . . . . . . . . . . . 1 . . . . . . . . . . . . . . . . . . . . Recycling Units 10 | . 2 . 2 . . . 1 . . . . . . 1 . 3 . . . . . . . . . 1 . . . . . . . . . . Scanalyzers 3 | . . . . . . . . . . . . . . . . 1 . . . . . . . . . . . . . . . 1 1 . . . Garrison Access 15 | . . . . . . . . 2 . . . . . 3 . 1 . . . . 1 . . . . 2 . . 1 1 . 1 1 2 . . Total Hacks 656 | . 12 1 46 . 2 7 29 33 1 10 . . . 71 . 82 8 . 27 . 25 29 . . 33 52 24 . 23 39 27 15 28 12 17 3 Successful 386 | . 6 1 36 . 2 3 18 14 1 10 . . . 32 . 46 8 . 27 . 18 17 . . 21 31 15 . 16 14 12 5 20 4 6 3 Failed 267 | . 6 . 10 . . 3 10 19 . . . . . 39 . 35 . . . . 7 12 . . 12 21 9 . 7 25 15 10 8 8 11 . Catastrophic 36 | . . . . . . 1 1 3 . . . . . 5 . 5 . . . . 1 1 . . 2 4 . . . 3 . 2 1 5 2 . Database Lockouts 3 | . . . . . . 1 1 . . . . . . . . 1 . . . . . . . . . . . . . . . . . . . . Manual 332 | . 9 . 34 . 1 7 25 14 . . 4 . . 54 . 47 . 1 . . 12 7 . . 6 25 15 . 12 26 16 . 12 5 . . Terminals 505 | . 10 . 42 . . 7 28 30 1 10 . . . 52 . 59 . . . . 21 29 . . 33 36 17 . 16 33 25 10 23 6 17 . Fabricators 53 | . . . . . . . . . . . . . . 14 . 12 . . . . 3 . . . . 7 7 . 6 2 2 . . . . . Repair Stations 3 | . . . 2 . . . . . . . . . . . . 1 . . . . . . . . . . . . . . . . . . . . Recycling Units 18 | . 2 . 2 . . . 1 . . . . . . 2 . 7 . . . . . . . . . 4 . . . . . . . . . . Scanalyzers 6 | . . . . . . . . . . . . . . . . 1 . . . . . . . . . . . . . . . 4 1 . . . Garrison Access 30 | . . . . . . . . 3 . . . . . 3 . 2 . . . . 1 . . . . 5 . . 1 4 . 1 4 6 . . Terminal Hacks 249 | . 3 1 25 . 2 3 11 8 1 10 . . . 18 . 25 8 . 27 . 11 12 . . 16 13 9 . 5 6 9 3 12 2 6 3 Record 26 | . . . 1 . 1 . . . 1 10 . . . . . . 7 . 6 . . . . . . . . . . . . . . . . . Part Schematic 26 | . . . . . . . . . . . . . . . . 3 . . 12 . 2 4 . . 3 . . . . . 1 . . . 1 . Robot Schematic 8 | . . . . . . . . . . . . . . . . . . . 6 . . . . . 1 1 . . . . . . . . . . Robot Analysis 11 | . 3 . 4 . . . 2 1 . . . . . . . . . . . . . . . . . . . . . . . . . 1 . . Prototype ID Bank 30 | . . . 10 . . 1 2 2 . . . . . 3 . 6 . . 3 . 2 1 . . . . . . . . . . . . . . Open Door 11 | . . 1 . . . . . . . . . . . . . . 1 . . . 1 1 . . . . 1 . . . 1 . 4 1 . . Open DSF 5 | . . . . . . . . . . . . . . 2 . 3 . . . . . . . . . . . . . . . . . . . . Branch Access Points 6 | . . . 1 . . . 1 1 . . . . . 1 . 1 . . . . . . . . . . . . . . 1 . . . . . Emergency Access Points 5 | . . . . . . . . . . . . . . . . . . . . . 1 . . . . 2 . . . 1 . . 1 . . . Machine Index 2 | . . . 1 . . . . . . . . . . . . 1 . . . . . . . . . . . . . . . . . . . . Terminal Index 1 | . . . . . . . . . . . . . . 1 . . . . . . . . . . . . . . . . . . . . . . Fabricator Index 1 | . . . . . . . . . . . . . . 1 . . . . . . . . . . . . . . . . . . . . . . Alert Level 28 | . . . 3 . . 1 1 1 . . . . . 1 . 3 . . . . . 2 . . 2 2 3 . 2 1 1 1 3 . 1 . Unreport Threat 33 | . . . 1 . . 1 3 . . . . . . 5 . 2 . . . . . . . . 6 3 4 . 1 2 3 2 . . . . Locate Traps 16 | . . . 2 . . . . 1 . . . . . 1 . . . . . . 1 1 . . 2 3 . . . 1 1 . 1 . 2 . Reprogram Traps 1 | . . . . . . . . . . . . . . . . 1 . . . . . . . . . . . . . . . . . . . . Dispatch Records 1 | . . . . . . . . . . . . . . . . 1 . . . . . . . . . . . . . . . . . . . . Maintenance Status 1 | . . . . . . . . . . . . . . . . 1 . . . . . . . . . . . . . . . . . . . . Surveillance Status 2 | . . . . . . . . . . . . . . . . 1 . . . . . 1 . . . . . . . . . . . . . . Patrol Status 4 | . . . . . . . . . . . . . . 1 . . . . . . . . . . . 1 . . . . . . 1 . 1 . Recall Investigation 1 | . . . . . . . . . . . . . . . . . . . . . . . . . . . . . . . . . 1 . . . Recall Reinforcements 1 | . . . . . . . . . . . . . . . . . . . . . . . . . . . . . . . . . 1 . . . Hauler Manifests 8 | . . . 1 . . . 1 1 . . . . . . . 1 . . . . 1 1 . . . 1 . . 1 . . . . . . . Registered Components 2 | . . . . . . . . . . . . . . . . 1 . . . . . . . . . . . . . . . . . . 1 . Registered Prototypes 1 | . . . . . . . . . . . . . . . . . . . . . . . . . . . . . 1 . . . . . . . Zone Layout 14 | . . . 1 . . . 1 1 . . . . . 2 . . . . . . 3 1 . . 2 . 1 . . 1 1 . . . . . EX-Prototype ID Bank 1 | . . . . . 1 . . . . . . . . . . . . . . . . . . . . . . . . . . . . . . . Gate Test 138-A 1 | . . . . . . . . . . . . . . . . . . . . . . . . . . . . . . . . . . . . 1 Gate Test 138-B 1 | . . . . . . . . . . . . . . . . . . . . . . . . . . . . . . . . . . . . 1 Gate Test 138-END 1 | . . . . . . . . . . . . . . . . . . . . . . . . . . . . . . . . . . . . 1 Fabricator Hacks 5 | . . . . . . . . . . . . . . 1 . 2 . . . . . . . . . 1 . . 1 . . . . . . . Network Status 3 | . . . . . . . . . . . . . . 1 . . . . . . . . . . . 1 . . 1 . . . . . . . Load Schematic 1 | . . . . . . . . . . . . . . . . 1 . . . . . . . . . . . . . . . . . . . . Build 1 | . . . . . . . . . . . . . . . . 1 . . . . . . . . . . . . . . . . . . . . Repair Station Hacks 2 | . . . 2 . . . . . . . . . . . . . . . . . . . . . . . . . . . . . . . . . Scan Component 1 | . . . 1 . . . . . . . . . . . . . . . . . . . . . . . . . . . . . . . . . Repair 1 | . . . 1 . . . . . . . . . . . . . . . . . . . . . . . . . . . . . . . . . Recycling Unit Hacks 2 | . . . . . . . . . . . . . . . . 1 . . . . . . . . . 1 . . . . . . . . . . Retrieve Components 2 | . . . . . . . . . . . . . . . . 1 . . . . . . . . . 1 . . . . . . . . . . Scanalyzer 3 | . . . . . . . . . . . . . . . . 1 . . . . . . . . . . . . . . . 1 1 . . . Insert Component 3 | . . . . . . . . . . . . . . . . 1 . . . . . . . . . . . . . . . 1 1 . . . Garrison Access Hacks 15 | . . . . . . . . 2 . . . . . 3 . 1 . . . . 1 . . . . 2 . . 1 1 . 1 1 2 . . Seal Access 15 | . . . . . . . . 2 . . . . . 3 . 1 . . . . 1 . . . . 2 . . 1 1 . 1 1 2 . . Unauthorized Hacks 110 | . 3 . 9 . . . 7 4 . . . . . 10 . 16 . . . . 6 5 . . 5 14 6 . 9 7 3 . 6 . . . Terminals 69 | . 1 . 7 . . . 6 4 . . . . . 3 . 7 . . . . 5 5 . . 5 5 3 . 4 6 2 . 6 . . . Track 9 | . . . 2 . . . . . . . . . . . . 1 . . . . 1 . . . 1 1 . . . 2 . . 1 . . . Assimilate 7 | . . . 1 . . . 1 1 . . . . . . . . . . . . . 1 . . . 1 1 . . . 1 . . . . . Botnet 40 | . 1 . 3 . . . 4 2 . . . . . 3 . 4 . . . . 3 4 . . 3 2 1 . 3 3 1 . 3 . . . Disrupt 4 | . . . . . . . . 1 . . . . . . . 1 . . . . . . . . . . . . . 1 . . 1 . . . Operators 9 | . . . 1 . . . 1 . . . . . . . . 1 . . . . 1 . . . 1 1 1 . 1 . . . 1 . . . Fabricators 26 | . . . . . . . . . . . . . . 5 . 4 . . . . 1 . . . . 6 3 . 5 1 1 . . . . . Report 2 | . . . . . . . . . . . . . . 1 . . . . . . . . . . . 1 . . . . . . . . . . Liberate 3 | . . . . . . . . . . . . . . . . . . . . . . . . . . 2 . . 1 . . . . . . . Fabnet 16 | . . . . . . . . . . . . . . 3 . 3 . . . . 1 . . . . 2 2 . 3 1 1 . . . . . Haulers 5 | . . . . . . . . . . . . . . 1 . 1 . . . . . . . . . 1 1 . 1 . . . . . . . Repair Stations 1 | . . . . . . . . . . . . . . . . 1 . . . . . . . . . . . . . . . . . . . . Mechanics 1 | . . . . . . . . . . . . . . . . 1 . . . . . . . . . . . . . . . . . . . . Recycling Units 14 | . 2 . 2 . . . 1 . . . . . . 2 . 4 . . . . . . . . . 3 . . . . . . . . . . Reject 3 | . . . . . . . . . . . . . . 1 . 1 . . . . . . . . . 1 . . . . . . . . . . Recyclers 3 | . . . . . . . . . . . . . . 1 . 1 . . . . . . . . . 1 . . . . . . . . . . Mask 3 | . . . . . . . . . . . . . . . . 2 . . . . . . . . . 1 . . . . . . . . . . Tunnel 5 | . 2 . 2 . . . 1 . . . . . . . . . . . . . . . . . . . . . . . . . . . . . Scanalyzers . | . . . . . . . . . . . . . . . . . . . . . . . . . . . . . . . . . . . . . Garrison Access . | . . . . . . . . . . . . . . . . . . . . . . . . . . . . . . . . . . . . . Data Cores Recovered 16 | . . . . . . . 2 1 . . . . . 3 . 1 . . . . 1 . . . 4 1 . . . 2 . . . . 1 . Used 9 | . . . . . . . . . . . . . . 1 . 1 . . . . 1 . . . 2 1 . . . 2 . . . . 1 . Hacking Detections 102 | . 4 . 7 . . 1 5 7 . 1 . . . 14 . 13 . . . . 8 6 . . 6 7 3 . 3 6 3 3 1 2 2 . Full Trace Events 5 | . . . . . . . . 2 . . . . . . . 2 . . . . . . . . . . . . . . . . . 1 . . Feedback Events 1 | . . . . . . . . . . . . . . . . 1 . . . . . . . . . . . . . . . . . . . . Corruption 1 | . . . . . . . . . . . . . . . . 1 . . . . . . . . . . . . . . . . . . . . Feedback Blocked . | . . . . . . . . . . . . . . . . . . . . . . . . . . . . . . . . . . . . . Robot Schematics Acquired 12 | . . . . . . . . . . . 4 . . . . . . . 6 . . . . . 1 1 . . . . . . . . . . Robots Built 2 | . . . . . . . . . . . . . . . . 2 . . . . . . . . . . . . . . . . . . . . Authchips . | . . . . . . . . . . . . . . . . . . . . . . . . . . . . . . . . . . . . . Time 222 | . . . . . . . . . . . . . . . . 222 . . . . . . . . . . . . . . . . . . . . Total Robot Build Rating 18 | . . . . . . . . . . . . . . . . 18 . . . . . . . . . . . . . . . . . . . . Part Schematics Acquired 41 | . . . . . . . . . . . 14 . . . . 3 . . 12 . 2 4 . . 3 . . . . 1 1 . . . 1 . Parts Built . | . . . . . . . . . . . . . . . . . . . . . . . . . . . . . . . . . . . . . Authchips . | . . . . . . . . . . . . . . . . . . . . . . . . . . . . . . . . . . . . . Time . | . . . . . . . . . . . . . . . . . . . . . . . . . . . . . . . . . . . . . Total Part Build Rating . | . . . . . . . . . . . . . . . . . . . . . . . . . . . . . . . . . . . . . Parts Repaired 1 | . . . 1 . . . . . . . . . . . . . . . . . . . . . . . . . . . . . . . . . Time 38 | . . . 38 . . . . . . . . . . . . . . . . . . . . . . . . . . . . . . . . . Parts Recycled . | . . . . . . . . . . . . . . . . . . . . . . . . . . . . . . . . . . . . . Recycled Matter . | . . . . . . . . . . . . . . . . . . . . . . . . . . . . . . . . . . . . . Retrieved Matter . | . . . . . . . . . . . . . . . . . . . . . . . . . . . . . . . . . . . . . Retrieved Components 3 | . . . . . . . . . . . . . . . . 2 . . . . . . . . . 1 . . . . . . . . . . Parts Scanalyzed . | . . . . . . . . . . . . . . . . . . . . . . . . . . . . . . . . . . . . . Part Schematics Acquired . | . . . . . . . . . . . . . . . . . . . . . . . . . . . . . . . . . . . . . Parts Damaged . | . . . . . . . . . . . . . . . . . . . . . . . . . . . . . . . . . . . . . Bothacking | -11 -10 -10 -9 -9 -9 -8 -8 -7 -7 -7 -7 -7 -6 -6 -6 -6 -6 -6 -6 -5 -5 -5 -5 -5 -5 -4 -4 -4 -3 -3 -2 -2 -2 -1 -1 -1 ------------ Run | Scr Mat Min Mat Min Exi Min Mat Fac Low Low Zio Dee Pro Fac Was Fac Low Low Dat Pro Fac Ext Cet Arc Hub Fac Arm Lab Res Tes Res Qua Sec Acc Com Ac0 Used RIF Installer . | . . . . . . . . . . . . . . . . . . . . . . . . . . . . . . . . . . . . . Robots Hacked 114 | . . . . . . . . . . . . . . . . . . . . 2 2 10 . . 13 5 9 . 1 . 1 4 4 18 45 . Non-combat . | . . . . . . . . . . . . . . . . . . . . . . . . . . . . . . . . . . . . . Combat 114 | . . . . . . . . . . . . . . . . . . . . 2 2 10 . . 13 5 9 . 1 . 1 4 4 18 45 . Robot Hacks Applied . | . . . . . . . . . . . . . . . . . . . . . . . . . . . . . . . . . . . . . Relay Couplers Released 5 | . . . . . . . . 1 . . . . . . . . . . . . . . . . . 3 . . . . . . . 1 . . Machine Destruction 4 | . . . . . . . . 1 . . . . . . . . . . . . . . . . . 2 . . . . . . . 1 . . Programmers 1 | . . . . . . . . . . . . . . . . . . . . . . . . . . 1 . . . . . . . . . . Fabnet Peak Effective % 12 | . . . . . . . . . . . . . . . . . . . . 9 9 9 9 9 9 6 6 6 1 1 12 12 12 7 7 7 Autooverrided 114 | . . . . . . . . . . . . . . . . . . . . 2 2 10 . . 13 5 9 . 1 . 1 4 4 18 45 . Robots Rewired 19 | . . . . . . . . . . . . . 2 . . . . . . 2 . 14 . . . . 1 . . . . . . . . . Allies Hacked 3 | . . . . . . . . . . . . . . . . . . . . 1 . 1 . . . . . . . . . . . . 1 . Hacks Repelled . | . . . . . . . . . . . . . . . . . . . . . . . . . . . . . . . . . . . . . Allies | -11 -10 -10 -9 -9 -9 -8 -8 -7 -7 -7 -7 -7 -6 -6 -6 -6 -6 -6 -6 -5 -5 -5 -5 -5 -5 -4 -4 -4 -3 -3 -2 -2 -2 -1 -1 -1 -------- Run | Scr Mat Min Mat Min Exi Min Mat Fac Low Low Zio Dee Pro Fac Was Fac Low Low Dat Pro Fac Ext Cet Arc Hub Fac Arm Lab Res Tes Res Qua Sec Acc Com Ac0 Total Allies 167 | . . . . 4 . . . 1 . . . . 2 . 19 2 . . . 4 2 26 . . 13 9 11 . 1 . 2 4 4 18 45 . Largest Group 19 | . . . . 4 4 . . 1 . . . . 2 2 19 4 2 2 2 3 3 17 15 14 14 5 3 . 1 . 1 4 2 2 8 . Highest-Rated Group 702 | . . . . 71 71 . . 26 . . . . 49 49 702 138 138 138 138 138 119 578 479 447 434 207 121 . 30 . 58 243 245 136 490 . Highest-Rated Ally 219 | . . . . 31 31 . . 26 . . . . 29 29 50 69 69 69 69 69 69 85 40 40 68 58 58 . 30 . 58 69 219 83 89 . Total Orders 53 | . . . . . 1 . . 1 . . . . 1 . . 2 . . 5 1 3 9 3 4 21 1 1 . . . . . . . . . STAY 36 | . . . . . 1 . . 1 . . . . 1 . . 1 . . 4 1 2 4 2 2 15 1 1 . . . . . . . . . ROAM 1 | . . . . . . . . . . . . . . . . . . . . . . 1 . . . . . . . . . . . . . . FOLLOW 16 | . . . . . . . . . . . . . . . . 1 . . 1 . 1 4 1 2 6 . . . . . . . . . . . Ally Attacks 392 | . . . . 15 28 . . . . . . . . 7 . 37 7 6 . 10 7 35 19 1 76 21 9 . 2 . 4 10 3 27 68 . Total Damage 11494 | . . . . 183 153 . . . . . . . . 70 . 695 166 306 . 133 137 2638 335 33 1782 581 369 . 49 . 178 388 109 1134 2055 . Kills 55 | . . . . 5 . . . . . . . . . . . 7 1 1 . . . 12 3 . 10 3 1 . . . . . . 4 8 . Allies Corrupted 5 | . . . . . . . . . . . . . . . . . . . . 1 . . . . . . . . . . . . . . 4 . Allies Melted 3 | . . . . . . . . . . . . . . . . . . . . . . . . . 1 . . . . . . . . 2 . . Intel | -11 -10 -10 -9 -9 -9 -8 -8 -7 -7 -7 -7 -7 -6 -6 -6 -6 -6 -6 -6 -5 -5 -5 -5 -5 -5 -4 -4 -4 -3 -3 -2 -2 -2 -1 -1 -1 ------- Run | Scr Mat Min Mat Min Exi Min Mat Fac Low Low Zio Dee Pro Fac Was Fac Low Low Dat Pro Fac Ext Cet Arc Hub Fac Arm Lab Res Tes Res Qua Sec Acc Com Ac0 Robot Analysis Total 138 | . 3 . 4 . . . 2 1 . . . . . . . . . . 128 . . . . . . . . . . . . . . . . . Derelict Logs Recovered 15 | . . 2 . 2 . . . . 2 2 . . 3 . . . 1 1 . 2 . . . . . . . . . . . . . . . . Drone Launches . | . . . . . . . . . . . . . . . . . . . . . . . . . . . . . . . . . . . . . Drone Recoveries . | . . . . . . . . . . . . . . . . . . . . . . . . . . . . . . . . . . . . . Exploration | -11 -10 -10 -9 -9 -9 -8 -8 -7 -7 -7 -7 -7 -6 -6 -6 -6 -6 -6 -6 -5 -5 -5 -5 -5 -5 -4 -4 -4 -3 -3 -2 -2 -2 -1 -1 -1 ------------- Run | Scr Mat Min Mat Min Exi Min Mat Fac Low Low Zio Dee Pro Fac Was Fac Low Low Dat Pro Fac Ext Cet Arc Hub Fac Arm Lab Res Tes Res Qua Sec Acc Com Ac0 Turns Passed 65639 | 21 1577 1317 4524 981 1081 1572 9935 1695 1625 1465 2735 2269 572 2162 1262 5074 705 964 112 561 1213 2761 160 1861 4927 1542 1482 124 1010 403 188 154 395 1681 4598 931 Spaces Moved 51553 | 11 803 766 2029 590 616 745 2547 1033 1253 1110 1549 1667 1044 2696 274 3840 1197 1161 137 1096 2240 1696 253 79 3095 2209 2530 240 1079 766 374 430 889 2772 4842 1895 Core 38 | . . . 19 . 19 . . . . . . . . . . . . . . . . . . . . . . . . . . . . . . . Treads 4412 | 9 803 766 1939 590 305 . . . . . . . . . . . . . . . . . . . . . . . . . . . . . . . Legs 9899 | 2 . . 71 . 292 745 2547 1033 1253 1110 1549 1297 . . . . . . . . . . . . . . . . . . . . . . . . Wheels . | . . . . . . . . . . . . . . . . . . . . . . . . . . . . . . . . . . . . . Hover 37156 | . . . . . . . . . . . . 370 1044 2696 274 3840 1197 1161 137 1096 2240 1696 253 79 3095 2209 2530 240 1079 766 374 430 877 2746 4832 1895 Flight . | . . . . . . . . . . . . . . . . . . . . . . . . . . . . . . . . . . . . . Fastest Speed 17 | 120 160 160 120 160 120 120 120 120 123 123 123 48 48 48 48 42 42 42 42 42 28 28 28 28 28 28 17 26 26 26 17 26 26 17 18 26 Average Speed 61 | 152 160 160 158 160 140 120 120 122 123 123 123 107 48 48 48 45 42 42 42 42 37 28 28 28 28 28 27 26 26 26 26 26 27 28 26 26 Slowest Speed 200 | 160 160 160 190 160 160 120 120 123 123 123 123 200 48 48 48 48 42 42 42 42 42 28 28 28 33 108 33 26 118 28 32 26 32 110 106 26 Overloaded Moves 59 | . . . . . . . . . . . . . . . . . . . . . . . . . . . 30 . . . 5 . . 11 13 . Propulsion Burnouts . | . . . . . . . . . . . . . . . . . . . . . . . . . . . . . . . . . . . . . Robots Hopped . | . . . . . . . . . . . . . . . . . . . . . . . . . . . . . . . . . . . . . Cave-ins Triggered . | . . . . . . . . . . . . . . . . . . . . . . . . . . . . . . . . . . . . . Teleports 5 | . . . . . . . . . . . . . . . . . . . . . . . . . . . . 1 . . . . 2 . 1 1 Spacefolds 17 | . . . . . . . . . . . . . . . . . . . . . . . . . . . . . . . . . 5 9 3 . Exploration Rate (%) 74 | 2 96 97 96 97 90 71 90 26 99 97 91 85 98 55 88 72 98 97 81 96 21 99 60 80 97 29 94 99 38 66 16 53 69 50 90 90 Regions Visited 36 Branch Regions 24 Pre-discovered Areas 32 | . 2 . 2 . 1 . 1 . . 1 3 . . . . . 1 . 21 . . . . . . . . . . . . . . . . . Known Exits Taken 7 | . . . 1 . . . 1 1 . . . . . . . 1 . . . 1 . . . . . . . . 1 . 1 . . . . . Unknown Exits Taken 27 | 1 1 1 . 1 1 1 . . 1 1 1 1 1 . . . 1 1 1 . 1 1 1 1 1 1 1 1 . 1 . 1 1 1 1 . Scrap Searched 39 | . . 1 . 1 . 1 . . 11 4 2 . 2 . . . 7 5 . 5 . . . . . . . . . . . . . . . . Spaces Dug 234 | . 14 3 . . . 49 24 3 6 . . . . 8 . 18 3 3 . 2 13 . . . 12 12 6 . 4 10 4 2 4 12 8 14 Terrain Destroyed 2044 | . 31 32 6 . 5 67 150 31 17 8 7 8 15 142 9 101 25 13 2 23 52 35 7 4 141 175 64 2 13 44 24 22 23 168 383 195 Melee . | . . . . . . . . . . . . . . . . . . . . . . . . . . . . . . . . . . . . . Projectile 1497 | . . . . . 5 45 123 18 8 6 6 7 15 44 9 101 25 13 2 23 52 35 7 4 141 142 28 2 13 44 24 22 23 105 239 166 AOE 333 | . 31 32 6 . . 14 21 . . . . . . 98 . . . . . . . . . . . 33 36 . . . . . . . 62 . Terrain Rammed . | . . . . . . . . . . . . . . . . . . . . . . . . . . . . . . . . . . . . . Walls Destroyed . | . . . . . . . . . . . . . . . . . . . . . . . . . . . . . . . . . . . . . Machines Disabled . | . . . . . . . . . . . . . . . . . . . . . . . . . . . . . . . . . . . . . Actions | -11 -10 -10 -9 -9 -9 -8 -8 -7 -7 -7 -7 -7 -6 -6 -6 -6 -6 -6 -6 -5 -5 -5 -5 -5 -5 -4 -4 -4 -3 -3 -2 -2 -2 -1 -1 -1 --------- Run | Scr Mat Min Mat Min Exi Min Mat Fac Low Low Zio Dee Pro Fac Was Fac Low Low Dat Pro Fac Ext Cet Arc Hub Fac Arm Lab Res Tes Res Qua Sec Acc Com Ac0 Total 83642 | 14 996 824 3191 613 762 1259 9111 1299 1298 1167 2193 1965 1124 3603 1413 7261 1407 1644 194 1207 2635 4041 351 1919 7247 3222 3427 305 1816 991 474 478 1040 3366 7597 2188 Wait 25588 | . 73 7 942 10 47 298 6255 84 3 13 475 51 22 712 1100 3045 177 441 32 52 248 2005 54 1830 3680 530 399 12 661 104 52 17 34 179 1914 30 Move 51485 | 10 802 765 2028 589 615 744 2546 1032 1252 1109 1548 1666 1043 2696 273 3839 1196 1160 136 1095 2239 1695 252 78 3094 2208 2529 239 1078 765 373 429 881 2754 4833 1894 Hop . | . . . . . . . . . . . . . . . . . . . . . . . . . . . . . . . . . . . . . Pick Up 63 | . 2 . 3 . 8 . 5 . . . 3 6 . 1 . 3 . . . . . . . . . . . 2 . 1 1 2 6 4 13 3 Fast Attach 178 | 3 3 2 20 . 12 4 5 3 . 1 2 23 . 9 . 6 . 2 4 . 8 . . . 4 2 8 10 1 8 1 1 13 9 12 2 Attach 15 | . . . . . . . . . . . . . . 2 . 1 . . . . . . . . . . . 1 . . . 1 3 4 1 2 Detach 21 | . 1 . 1 . 1 1 1 . . . . 1 . 4 . 2 . . . . . . . . . . . . . . . 1 1 3 2 2 Swap 77 | . 2 3 10 . . . 4 5 . . 8 3 . . . 6 . . . . 1 . . . . . . 1 . 1 1 . 2 4 19 7 Drop 192 | 1 4 4 28 . 19 4 3 2 . 1 5 31 . 8 . 5 . 2 4 . 6 . . . 2 . 2 9 . 10 3 1 11 6 17 4 Fire 4808 | . 91 28 76 6 45 141 236 125 30 32 140 144 42 152 40 323 34 31 15 45 103 242 39 9 381 440 439 24 61 80 36 21 64 288 608 197 Melee 8 | . . . . . . . . . . . . . . . . . . . . . . . . . . . . . . . . . 4 4 . . Ram 2 | . . . . . . . . . . . . . . . . . . . 1 . . . . . . . . . . . . . . 1 . . Kick 61 | . . . . . . 43 11 6 1 . . . . . . . . . . . . . . . . . . . . . . . . . . . Crush 32 | . 5 11 12 4 . . . . . . . . . . . . . . . . . . . . . . . . . . . . . . . . Escape Stasis 103 | . . . . . . . . . . . . . . . . . . . . . 16 . . . 10 . . . 2 9 . . . . 66 . Rewire 95 | . . . . . . . . . 1 . . . 9 . . . . . . 9 . 75 . . . . 1 . . . . . . . . . Trap . | . . . . . . . . . . . . . . . . . . . . . . . . . . . . . . . . . . . . . Miscellaneous 914 | . 13 4 71 4 15 24 45 42 11 11 12 40 8 19 . 31 . 8 2 6 14 24 6 2 76 42 49 7 13 13 7 5 21 110 112 47 Route ------- -11/Scrapyard -10/Materials (discovered 5 exits: *Mat x3 / *Min x2) -10/Mines (discovered 2 exits: *Mat x2) -9/Materials (discovered 5 exits: *Mat x3 / *Min x2) -9/Mines (discovered 4 exits: *Mat x2 / *Exi / *Zio) -9/Exiles (discovered 2 exits: *Min x2) -8/Mines (discovered 2 exits: *Mat x2) -8/Materials (discovered 2 exits: *Fac x2) -7/Factory (discovered 5 exits: *Fac / Sto x2 / *Low x2) -7/Lower Caves -7/Lower Caves (discovered 2 exits: *Fac / *Zio) -7/Zion (discovered 2 exits: [*Dee] / [*Pro]) -7/Deep Caves -6/Proximity Caves -6/Factory (discovered 5 exits: *Fac x3 / Low x2) -6/Waste -6/Factory (discovered 3 exits: *Fac / *Low x2) -6/Lower Caves -6/Lower Caves (discovered 2 exits: *Fac / *Dat) -6/Data Miner -5/Proximity Caves -5/Factory (discovered 5 exits: *Fac x2 / Upp x2 / *Ext) -5/Extension (discovered 2 exits: *Fac / [*Cet]) -5/Cetus (discovered 2 exits: *Fac / [*Arc]) -5/Archives (discovered 2 exits: *Fac / *Hub) -5/Hub_04(d) (discovered 4 exits: *Fac x4) -4/Factory (discovered 2 exits: Upp / *Arm) -4/Armory (discovered 3 exits: *Res x2 / [*Lab]) -4/Lab -3/Research (discovered 3 exits: *Res x2 / *Tes) -3/Testing -2/Research (discovered 2 exits: *Qua x2) -2/Quarantine (discovered 2 exits: *Acc / *Sec) -2/Section 7 -1/Access (discovered 2 exits: [Sur] / *Com) -1/Command (discovered 3 exits: [*Sur x2] / *Ac0) -1/Access_0 Near Former Tau Ceti IV History --------- Turn | Location | Event 1 | -11/Scrapyard | Discovered new exit (range 1) 6 | -11/Scrapyard | Upgraded with Propulsion slot (x1) 6 | -11/Scrapyard | Upgraded with Utility slot (x1) 6 | -11/Scrapyard | Upgraded with Weapon slot (x1) 22 | -11/Scrapyard | Entered Materials 310 | -10/Materials | Build established: Mutant 394 | -10/Materials | Discovered new exit (range 5) 777 | -10/Materials | Reached level 2 784 | -10/Materials | Discovered new exit (range 17) 1184 | -10/Materials | Discovered new exit (range 12) 1322 | -10/Materials | Discovered new exit (range 15) 1444 | -10/Materials | Reached level 3 1463 | -10/Materials | Discovered new exit (range 16) 1599 | -10/Materials | Entered Mines 1604 | -10/Mines | Discovered new exit (range 11) 1661 | -10/Mines | Assembled infested the area 1714 | -10/Mines | Destroyed 17 combat bots 1785 | -10/Mines | Received a Rocket Launcher from a helpful Derelict 1815 | -10/Mines | Discovered new exit (range 5) 2130 | -10/Mines | Core integrity fell below 50% 2232 | -10/Mines | Joined a pair of Derelicts in attacking an 0b10 outpost 2295 | -10/Mines | Met a Derelict who couldn't figure out how to use a Trap Extractor 2309 | -10/Mines | Core integrity fell below 20% 2409 | -10/Mines | Learned Materials security intel 2916 | -10/Mines | Entered Materials 2917 | -9/Materials | Core integrity fell below 50% 2917 | -9/Materials | Core integrity fell below 20% 2918 | -9/Materials | Reached level 4 3223 | -9/Materials | Build established: Hacker-Mutant 3564 | -9/Materials | Reached level 5 3582 | -9/Materials | Discovered new exit (range 8) 3648 | -9/Materials | Discovered new exit (range 16) 4099 | -9/Materials | Discovered new exit (range 11) 4131 | -9/Materials | Discovered new exit (range 17) 4174 | -9/Materials | Upgraded with Weapon slot (x1) 4228 | -9/Materials | Identified exit to Mines 4519 | -9/Materials | Build established: Hacker-Gunner 4837 | -9/Materials | Reached level 6 4875 | -9/Materials | Destroyed 9 combat bots 5282 | -9/Materials | Discovered new exit (range 16) 5618 | -9/Materials | Upgraded with Utility slot (x1) 5640 | -9/Materials | Reached level 7 5716 | -9/Materials | First assault squad dispatched 6112 | -9/Materials | Repaired Imp. Light Armor Plating 6314 | -9/Materials | Upgraded with Weapon slot (x1) 7384 | -9/Materials | Reached level 8 7440 | -9/Materials | Entered Mines 7528 | -9/Mines | Discovered new exit (range 7) 7565 | -9/Mines | Assisted by bots powering up and referring to "LRC-V3" 7628 | -9/Mines | A Derelict revealed a hidden shortcut to a safe place 7754 | -9/Mines | Discovered new exit (range 8) 8091 | -9/Mines | Learned Materials garrison access intel 8111 | -9/Mines | Found a damaged Exp. Sensor Array with a note attached 8262 | -9/Mines | Received a Mining Laser from a helpful Derelict 8411 | -9/Mines | Deemed a non-threat by the Exiles lab entrance 8411 | -9/Mines | Discovered new exit (range 5) 8421 | -9/Mines | Entered Exiles 8421 | -9/Exiles | Accompanied by 4 allies 8442 | -9/Exiles | Discovered new exit (range 15) 8461 | -9/Exiles | Met 8R-AWN 8484 | -9/Exiles | Met EX-HEX 8533 | -9/Exiles | Met EX-BIN 8557 | -9/Exiles | Aligned with FarCom system 8559 | -9/Exiles | Given EX-Vault access code 8601 | -9/Exiles | Opened EX-Vault 8644 | -9/Exiles | Warned to stay clear of 0b10 Research branches 8690 | -9/Exiles | Met EX-DEC 8708 | -9/Exiles | Learned location of Zion (-7) 8888 | -9/Exiles | Attacked by the Exiles 8955 | -9/Exiles | Destroyed 7 combat bots 9022 | -9/Exiles | Destroyed 8R-AWN 9068 | -9/Exiles | Found Prototype Ballistic Gun 9068 | -9/Exiles | Identified 8R-AWN's Boregun 9096 | -9/Exiles | Found Prototype Processor 9096 | -9/Exiles | Identified Exp. Targeting Computer 9110 | -9/Exiles | Found Prototype Device 9110 | -9/Exiles | Identified AS-neutralizer No. 17b 9152 | -9/Exiles | Found 8R-AWN's Boregun 9256 | -9/Exiles | Destroyed EX-DEC 9288 | -9/Exiles | Destroyed EX-BIN 9324 | -9/Exiles | Destroyed EX-HEX 9486 | -9/Exiles | Discovered new exit (range 15) 9502 | -9/Exiles | Entered Mines 9502 | -8/Mines | Discovered new exit (range 10) 9504 | -8/Mines | Reached level 9 9632 | -8/Mines | Discovered new exit (range 7) 9653 | -8/Mines | 7V-RTL came to Exiles' defense 9971 | -8/Mines | Build established: Scavenger-Mutant 10447 | -8/Mines | Destroyed 7V-RTL 10470 | -8/Mines | Found Adv. Powered Armor 10473 | -8/Mines | Found Prototype Device 10473 | -8/Mines | Identified 7V-RTL's Ultimate Field 10844 | -8/Mines | Build established: Scavenger-Gunner 11065 | -8/Mines | Central database locked down 11074 | -8/Mines | Entered Materials 11075 | -8/Materials | Loaded intel: 1 garrison access location 11076 | -8/Materials | Reached level 10 11118 | -8/Materials | Reached level 11 11393 | -8/Materials | Discovered new exit (range 19) 11416 | -8/Materials | Central database locked down 11597 | -8/Materials | Reached level 12 11792 | -8/Materials | Upgraded with Utility slot (x1) 12067 | -8/Materials | Upgraded with Propulsion slot (x1) 12193 | -8/Materials | Upgraded with Power slot (x1) 12230 | -8/Materials | Discovered new exit (range 15) 12248 | -8/Materials | Identified exit to Factory 12519 | -8/Materials | Reached level 13 12554 | -8/Materials | Garrison activated, responded to threat 13874 | -8/Materials | First assault squad dispatched 19163 | -8/Materials | Reached level 14 19195 | -8/Materials | Destroyed 8 combat bots 20364 | -8/Materials | High security lockdown imminent 20389 | -8/Materials | Destroyed 8 combat bots 20444 | -8/Materials | High security lockdown engaged 20598 | -8/Materials | Destroyed 15 combat bots 20695 | -8/Materials | Reached level 15 20730 | -8/Materials | Destroyed 17 combat bots 20837 | -8/Materials | Sterilization system engaged 20837 | -8/Materials | Non-combat units ordered to evacuate 20878 | -8/Materials | Destroyed 23 combat bots 20937 | -8/Materials | Combat units ordered to evacuate 21009 | -8/Materials | Entered Factory 21010 | -7/Factory | Identified exit to Storage 21020 | -7/Factory | Discovered new exit (range 14) 21387 | -7/Factory | Reached level 16 21464 | -7/Factory | Identified exit to Lower Caves 22070 | -7/Factory | Discovered new exit (range 19) 22190 | -7/Factory | Cargo convoy interrupted 22209 | -7/Factory | First assault squad dispatched 22311 | -7/Factory | Destroyed 7 combat bots 22328 | -7/Factory | High security lockdown imminent 22375 | -7/Factory | Reached level 17 22408 | -7/Factory | High security lockdown engaged 22636 | -7/Factory | Core integrity fell below 50% 22683 | -7/Factory | Destroyed 20 combat bots 22704 | -7/Factory | Entered Lower Caves 23227 | -7/Lower Caves | Attracted the attention of an 0b10 checkpoint 23253 | -7/Lower Caves | Learned Factory stockpile data 23291 | -7/Lower Caves | Encountered a Warlord checkpoint 23940 | -7/Lower Caves | Learned Factory stockpile data 24034 | -7/Lower Caves | Build established: Scavenger-Mutant 24113 | -7/Lower Caves | Discovered new exit (range 19) 24329 | -7/Lower Caves | Entered another Lower Caves area 24329 | -7/Lower Caves | Discovered new exit (range 14) 24331 | -7/Lower Caves | Reached level 18 24491 | -7/Lower Caves | Learned Factory garrison access intel 24525 | -7/Lower Caves | Attracted the attention of an 0b10 base 24551 | -7/Lower Caves | Learned location of Armory (-4) 24551 | -7/Lower Caves | Learned 8 Research zone layouts 24551 | -7/Lower Caves | Learned 6 Proximity Caves zone layouts 24551 | -7/Lower Caves | Learned Armory stockpile data 24551 | -7/Lower Caves | Learned Research terminal intel 24551 | -7/Lower Caves | Learned Research garrison access intel 24562 | -7/Lower Caves | Destroyed 7 combat bots 24623 | -7/Lower Caves | Build established: Scavenger-Gunner 25223 | -7/Lower Caves | Discovered new exit (range 13) 25365 | -7/Lower Caves | Attracted the attention of an 0b10 checkpoint 25794 | -7/Lower Caves | Entered Zion 25866 | -7/Zion | System corruption cleaned by Quarantine Array 25995 | -7/Zion | Learned location of Warlord (-4) 26011 | -7/Zion | Learned location of Data Miner (-6) 26027 | -7/Zion | Loaded intel: 4 derelict terminal locations 26113 | -7/Zion | Given the Hacking Drone Bay 26123 | -7/Zion | Found Prototype Device 26123 | -7/Zion | Identified Hacking Drone Bay 26284 | -7/Zion | Given A8's code to call for help 26591 | -7/Zion | Discovered new exit (range 18) 26822 | -7/Zion | Attacked by Zionites 27039 | -7/Zion | Destroyed Imprinter 27066 | -7/Zion | Extracted access codes from Imprinter's data core 28276 | -7/Zion | Spotted BF-TDF(B) 28313 | -7/Zion | Destroyed BF-TDF(B) 28320 | -7/Zion | Spotted EI-75S(B) 28343 | -7/Zion | Destroyed EI-75S(B) 28499 | -7/Zion | Opened final containment barrier to the Deep Caves 28520 | -7/Zion | Discovered new exit (range 5) 28523 | -7/Zion | Saw the warning signs outside the Deep Caves entrance 28529 | -7/Zion | Entered Deep Caves 28723 | -7/Deep Caves | Z-Facility disabled 28818 | -7/Deep Caves | Found Prototype Protection 28818 | -7/Deep Caves | Identified Zio. Weapon Casing 28843 | -7/Deep Caves | Found Prototype Protection 28843 | -7/Deep Caves | Identified Zio. Heavy Carapace 29217 | -7/Deep Caves | Discovered new exit (range 7) 29321 | -7/Deep Caves | Spotted as-67617 29666 | -7/Deep Caves | Exposed GOLEM chamber 29682 | -7/Deep Caves | Destroyed as-67617 30019 | -7/Deep Caves | Destroyed 26 combat bots 30052 | -7/Deep Caves | Triggered Deep Caves wall 30113 | -7/Deep Caves | Spotted AS-30067 30122 | -7/Deep Caves | Spotted AS-29903 30129 | -7/Deep Caves | Destroyed AS-29903 30141 | -7/Deep Caves | Destroyed 36 combat bots 30160 | -7/Deep Caves | Destroyed AS-30067 30167 | -7/Deep Caves | Spotted as-83444 30213 | -7/Deep Caves | Destroyed as-83444 30313 | -7/Deep Caves | Destroyed 27 combat bots 30344 | -7/Deep Caves | Found XL Autogun Array 30606 | -7/Deep Caves | Upgraded with Propulsion slot (x1) 30798 | -7/Deep Caves | Entered Proximity Caves 30844 | -6/Proximity Caves | Attracted the attention of an 0b10 checkpoint 30856 | -6/Proximity Caves | Learned Factory trap positions 30923 | -6/Proximity Caves | Reached level 19 30927 | -6/Proximity Caves | Learned 4 Factory zone layouts 30934 | -6/Proximity Caves | Attracted the attention of an 0b10 outpost 30961 | -6/Proximity Caves | Destroyed 10 combat bots 31047 | -6/Proximity Caves | Learned Factory trap positions 31063 | -6/Proximity Caves | Discovered new exit (range 8) 31124 | -6/Proximity Caves | Spotted B-75 Beast 31166 | -6/Proximity Caves | Destroyed B-75 Beast 31370 | -6/Proximity Caves | Entered Factory 31370 | -6/Factory | Accompanied by 2 allies 31371 | -6/Factory | Identified exit to Factory 31371 | -6/Factory | Identified exit to Lower Caves 31372 | -6/Factory | Loaded intel: 118 trap records 31374 | -6/Factory | Loaded intel: 4 garrison access locations 31541 | -6/Factory | Identified exit to DSF 31619 | -6/Factory | Identified exit to DSF 31751 | -6/Factory | Reached level 20 31753 | -6/Factory | Garrison activated, responded to threat 31790 | -6/Factory | Discovered exit to Factory (range 20) 31795 | -6/Factory | Destroyed 7 combat bots 31957 | -6/Factory | Discovered exit to Factory (range 8) 32070 | -6/Factory | First assault squad dispatched 32278 | -6/Factory | Destroyed 9 combat bots 32859 | -6/Factory | Spotted B-75 Beast 32979 | -6/Factory | Reached level 21 33019 | -6/Factory | Destroyed 9 combat bots 33532 | -6/Factory | Manually triggered Chute Trap 33532 | -6/Factory | Sucked down chute 33532 | -6/Factory | Entered Waste 33541 | -6/Waste | Spotted C-40 Crusher 33541 | -6/Waste | Spotted C-40 Crusher 33543 | -6/Waste | Destroyed C-40 Crusher 33549 | -6/Waste | Destroyed C-40 Crusher 33557 | -6/Waste | Spotted C-40 Crusher 33563 | -6/Waste | Destroyed C-40 Crusher 33567 | -6/Waste | Spotted C-40 Crusher 33571 | -6/Waste | Destroyed C-40 Crusher 33572 | -6/Waste | Spotted C-40 Crusher 33574 | -6/Waste | Destroyed C-40 Crusher 33574 | -6/Waste | Spotted C-40 Crusher 33584 | -6/Waste | Destroyed C-40 Crusher 33600 | -6/Waste | Warlord forces began an assault 33624 | -6/Waste | Discovered new exit (range 12) 34794 | -6/Waste | Entered Factory 34794 | -6/Factory | Accompanied by 4 allies 34795 | -6/Factory | Loaded intel: 91 trap records 34800 | -6/Factory | Identified exit to DSF 34835 | -6/Factory | Identified exit to DSF 35392 | -6/Factory | Spotted B-75 Beast 35706 | -6/Factory | Cargo convoy interrupted 35733 | -6/Factory | Found Prototype Processor 35733 | -6/Factory | Identified Exp. Melee Analysis Suite 35924 | -6/Factory | Destroyed 8 combat bots 36007 | -6/Factory | Upgraded with Propulsion slot (x1) 36194 | -6/Factory | First assault squad dispatched 36276 | -6/Factory | Discovered exit to Factory (range 19) 36364 | -6/Factory | Destroyed 7 combat bots 36370 | -6/Factory | Central database locked down 36549 | -6/Factory | Fabricated H-88 Terminator? 36600 | -6/Factory | Reached level 22 39568 | -6/Factory | High security lockdown imminent 39648 | -6/Factory | High security lockdown engaged 39719 | -6/Factory | Sterilization system engaged 39719 | -6/Factory | Non-combat units ordered to evacuate 39752 | -6/Factory | Destroyed 11 combat bots 39819 | -6/Factory | Combat units ordered to evacuate 39868 | -6/Factory | Entered Lower Caves 39868 | -6/Lower Caves | Accompanied by 2 allies 40090 | -6/Lower Caves | Learned Factory emergency access door positions 40090 | -6/Lower Caves | Learned Research security intel 40238 | -6/Lower Caves | Discovered new exit (range 8) 40241 | -6/Lower Caves | Learned Factory interactive machine intel 40573 | -6/Lower Caves | Entered another Lower Caves area 40573 | -6/Lower Caves | Accompanied by 2 allies 40594 | -6/Lower Caves | Discovered exit to Factory (range 11) 40608 | -6/Lower Caves | Acquired the password to a Derelict Tinkerer's latest research 40897 | -6/Lower Caves | Found Prototype Special Weapon 40897 | -6/Lower Caves | Identified Molecular Deconstructor 41084 | -6/Lower Caves | Caught by Unaware searching for contraband prototypes 41089 | -6/Lower Caves | Reached level 23 41145 | -6/Lower Caves | Spotted B-75 Beast 41150 | -6/Lower Caves | Destroyed B-75 Beast 41403 | -6/Lower Caves | Discovered new exit (range 4) 41537 | -6/Lower Caves | Entered Data Miner 41537 | -6/Data Miner | Accompanied by 2 allies 41537 | -6/Data Miner | Discovered new exit (range 6) 41561 | -6/Data Miner | Met Data Miner 41570 | -6/Data Miner | Learned location of Section 7 (-2) 41570 | -6/Data Miner | Acquired the access code to Warlord's prototype stash 41576 | -6/Data Miner | Received God Mode back door access code from Data Miner 41582 | -6/Data Miner | Interfaced with the Data Conduit 41649 | -6/Data Miner | Entered Proximity Caves 41649 | -5/Proximity Caves | Accompanied by 2 allies 41812 | -5/Proximity Caves | Learned Factory stockpile data 41874 | -5/Proximity Caves | Attracted the attention of an 0b10 outpost 41908 | -5/Proximity Caves | Destroyed 7 combat bots 41944 | -5/Proximity Caves | Discovered exit to Factory (range 12) 42062 | -5/Proximity Caves | Spotted B-75 Beast 42071 | -5/Proximity Caves | Destroyed B-75 Beast 42210 | -5/Proximity Caves | Entered Factory 42210 | -5/Factory | Accompanied by 3 allies 42211 | -5/Factory | Identified exit to Upper Caves 42214 | -5/Factory | Loaded intel: 269 machine locations 42215 | -5/Factory | Loaded intel: 54 interactive machine locations 42217 | -5/Factory | Upgraded with Utility slot (x1) 42237 | -5/Factory | Reached level 24 42275 | -5/Factory | Discovered new exit (range 7) 42445 | -5/Factory | Discovered new exit (range 10) 42702 | -5/Factory | Intercept squad dispatched 42724 | -5/Factory | Spotted Tracker 42725 | -5/Factory | Destroyed Tracker 42759 | -5/Factory | Spotted Combat Programmer 42760 | -5/Factory | Destroyed Combat Programmer 42883 | -5/Factory | Discovered new exit (range 13) 42956 | -5/Factory | Cargo convoy interrupted 43001 | -5/Factory | Destroyed 10 combat bots 43219 | -5/Factory | Intercept squad dispatched 43247 | -5/Factory | Spotted Tracker 43249 | -5/Factory | Destroyed Tracker 43252 | -5/Factory | Spotted Combat Programmer 43254 | -5/Factory | Destroyed Combat Programmer 43259 | -5/Factory | Found Prototype Energy Gun 43259 | -5/Factory | Identified Immobilizer 43283 | -5/Factory | Build established: Hacker-Sprinter 43423 | -5/Factory | Entered Extension 43423 | -5/Extension | Accompanied by 1 ally 43424 | -5/Extension | Loaded intel: 27 machine locations 43464 | -5/Extension | Rescued a captive Derelict 43768 | -5/Extension | Spotted B-75 Beast 43776 | -5/Extension | Destroyed B-75 Beast 43834 | -5/Extension | Build established: Commander-Sprinter 43866 | -5/Extension | Discovered new exit (range 10) 43866 | -5/Extension | Discovered new exit (range 6) 44623 | -5/Extension | First assault squad dispatched 44633 | -5/Extension | Reached level 25 44648 | -5/Extension | Disrupted transfer network 44664 | -5/Extension | Destroyed 11 combat bots 44981 | -5/Extension | Destroyed 12 combat bots 45263 | -5/Extension | Destroyed 7 combat bots 45827 | -5/Extension | High security lockdown imminent 45872 | -5/Extension | Destroyed 21 combat bots 45907 | -5/Extension | High security lockdown engaged 45970 | -5/Extension | Reached level 26 46027 | -5/Extension | Destroyed 27 combat bots 46029 | -5/Extension | Disrupted transfer network 46073 | -5/Extension | Sterilization system engaged 46073 | -5/Extension | Non-combat units ordered to evacuate 46087 | -5/Extension | Destroyed 20 combat bots 46173 | -5/Extension | Combat units ordered to evacuate 46184 | -5/Extension | Entered Cetus 46184 | -5/Cetus | Accompanied by 15 allies 46185 | -5/Cetus | Loaded intel: 24 machine locations 46188 | -5/Cetus | Spotted Cetus Guard 46189 | -5/Cetus | Spotted Cetus Guard 46190 | -5/Cetus | Destroyed Cetus Guard 46191 | -5/Cetus | Spotted Cetus Guard 46191 | -5/Cetus | Spotted Cetus Guard 46196 | -5/Cetus | Destroyed Cetus Guard 46198 | -5/Cetus | Destroyed Cetus Guard 46200 | -5/Cetus | Destroyed Cetus Guard 46215 | -5/Cetus | Discovered new exit (range 19) 46223 | -5/Cetus | Spotted Cetus Guard 46223 | -5/Cetus | Spotted Cetus Guard 46223 | -5/Cetus | Spotted Cetus Guard 46223 | -5/Cetus | Spotted Cetus Guard 46227 | -5/Cetus | Destroyed Cetus Guard 46231 | -5/Cetus | Destroyed Cetus Guard 46234 | -5/Cetus | Destroyed Cetus Guard 46237 | -5/Cetus | Destroyed Cetus Guard 46239 | -5/Cetus | Discovered new exit (range 19) 46242 | -5/Cetus | Met Revision 17 46344 | -5/Cetus | Entered Archives 46344 | -5/Archives | Accompanied by 14 allies 46345 | -5/Archives | Loaded intel: 8 machine locations 46359 | -5/Archives | Discovered new exit (range 17) 46365 | -5/Archives | Discovered new exit (range 17) 48205 | -5/Archives | Entered Hub_04(d) 48205 | -5/Hub_04(d) | Accompanied by 14 allies 48206 | -5/Hub_04(d) | Loaded intel: 75 machine locations 48206 | -5/Hub_04(d) | Discovered new exit (range 19) 48240 | -5/Hub_04(d) | Discovered new exit (range 20) 48266 | -5/Hub_04(d) | Discovered new exit (range 20) 48552 | -5/Hub_04(d) | Discovered new exit (range 5) 48792 | -5/Hub_04(d) | Intercept squad dispatched 48795 | -5/Hub_04(d) | Spotted Tracker 48801 | -5/Hub_04(d) | Destroyed Tracker 48823 | -5/Hub_04(d) | Spotted Combat Programmer 48826 | -5/Hub_04(d) | Destroyed Combat Programmer 49116 | -5/Hub_04(d) | Build established: Hacker-Sprinter 49118 | -5/Hub_04(d) | Network Hub disabled 49128 | -5/Hub_04(d) | Spotted Lightning 49128 | -5/Hub_04(d) | Spotted Lightning 49129 | -5/Hub_04(d) | Spotted Lightning 49132 | -5/Hub_04(d) | Destroyed Lightning 49161 | -5/Hub_04(d) | Destroyed Lightning 49167 | -5/Hub_04(d) | Destroyed Lightning 49176 | -5/Hub_04(d) | Found Prototype Energy Cannon 49176 | -5/Hub_04(d) | Identified EMDS 49182 | -5/Hub_04(d) | Spotted Lightning 49182 | -5/Hub_04(d) | Spotted Lightning 49182 | -5/Hub_04(d) | Spotted Lightning 49197 | -5/Hub_04(d) | Network Hub disabled 49224 | -5/Hub_04(d) | Destroyed Lightning 49232 | -5/Hub_04(d) | Destroyed Lightning 49237 | -5/Hub_04(d) | Destroyed Lightning 49345 | -5/Hub_04(d) | Spotted Lightning 49345 | -5/Hub_04(d) | Spotted Lightning 49345 | -5/Hub_04(d) | Spotted Lightning 49362 | -5/Hub_04(d) | Network Hub disabled 49399 | -5/Hub_04(d) | System corruption reached 10% 49405 | -5/Hub_04(d) | First assault squad dispatched 49412 | -5/Hub_04(d) | Destroyed Lightning 49415 | -5/Hub_04(d) | Destroyed Lightning 49416 | -5/Hub_04(d) | Destroyed Lightning 49467 | -5/Hub_04(d) | Network Hub disabled 49750 | -5/Hub_04(d) | Spotted B-75 Beast 49757 | -5/Hub_04(d) | Destroyed B-75 Beast 50684 | -5/Hub_04(d) | Reached level 27 50764 | -5/Hub_04(d) | Intercept squad dispatched 50771 | -5/Hub_04(d) | Spotted Tracker 50774 | -5/Hub_04(d) | Destroyed Tracker 50784 | -5/Hub_04(d) | Spotted Combat Programmer 50788 | -5/Hub_04(d) | Destroyed Combat Programmer 52007 | -5/Hub_04(d) | Upgraded with Utility slot (x1) 52008 | -5/Hub_04(d) | Found Exp. Phase Shifter 52512 | -5/Hub_04(d) | Destroyed 8 combat bots 52758 | -5/Hub_04(d) | High security lockdown imminent 52790 | -5/Hub_04(d) | Destroyed 7 combat bots 52838 | -5/Hub_04(d) | High security lockdown engaged 52978 | -5/Hub_04(d) | Sterilization system engaged 52978 | -5/Hub_04(d) | Non-combat units ordered to evacuate 53059 | -5/Hub_04(d) | Destroyed 37 combat bots 53078 | -5/Hub_04(d) | Combat units ordered to evacuate 53132 | -5/Hub_04(d) | Entered Factory 53133 | -4/Factory | Identified exit to Upper Caves 53134 | -4/Factory | Loaded intel: 276 machine locations 53321 | -4/Factory | Garrison activated, responded to threat 53374 | -4/Factory | Destroyed 12 combat bots 53416 | -4/Factory | Discovered new exit (range 16) 53456 | -4/Factory | Destroyed 9 combat bots 53569 | -4/Factory | Reached level 28 53595 | -4/Factory | High security lockdown imminent 53667 | -4/Factory | Intercept squad dispatched 53675 | -4/Factory | High security lockdown engaged 53685 | -4/Factory | Spotted Tracker 53685 | -4/Factory | Spotted Tracker 53687 | -4/Factory | Destroyed Tracker 53689 | -4/Factory | Destroyed Tracker 53715 | -4/Factory | Spotted Combat Programmer 53717 | -4/Factory | Destroyed Combat Programmer 53720 | -4/Factory | Spotted Combat Programmer 53725 | -4/Factory | Destroyed Combat Programmer 53928 | -4/Factory | Destroyed 32 combat bots 54125 | -4/Factory | Destroyed 24 combat bots 54323 | -4/Factory | Destroyed 16 combat bots 54357 | -4/Factory | Sterilization system engaged 54357 | -4/Factory | Non-combat units ordered to evacuate 54385 | -4/Factory | Destroyed 10 combat bots 54397 | -4/Factory | Reached level 29 54457 | -4/Factory | Combat units ordered to evacuate 54522 | -4/Factory | Destroyed 9 combat bots 54657 | -4/Factory | Ambient heat levels rising (+10) 54674 | -4/Factory | Entered Armory 54676 | -4/Armory | Loaded intel: 68 machine locations 54924 | -4/Armory | First assault squad dispatched 54993 | -4/Armory | High security lockdown imminent 55073 | -4/Armory | High security lockdown engaged 55085 | -4/Armory | Attacked by bots powering up and referring to "LRC-V3" 55096 | -4/Armory | Destroyed 12 combat bots 55115 | -4/Armory | Spotted B-86 Titan 55121 | -4/Armory | Destroyed B-86 Titan 55190 | -4/Armory | Destroyed 11 combat bots 55303 | -4/Armory | Destroyed 19 combat bots 55311 | -4/Armory | Intercept squad dispatched 55315 | -4/Armory | Spotted Tracker 55317 | -4/Armory | Destroyed Tracker 55327 | -4/Armory | Discovered new exit (range 4) 55353 | -4/Armory | Spotted Combat Programmer 55365 | -4/Armory | Destroyed Combat Programmer 55380 | -4/Armory | Discovered new exit (range 5) 55397 | -4/Armory | Upgraded with Propulsion slot (x1) 55407 | -4/Armory | Destroyed 16 combat bots 55483 | -4/Armory | Destroyed 11 combat bots 55675 | -4/Armory | Destroyed 23 combat bots 55838 | -4/Armory | Reached level 30 55863 | -4/Armory | Sterilization system engaged 55863 | -4/Armory | Non-combat units ordered to evacuate 55878 | -4/Armory | Destroyed 12 combat bots 55963 | -4/Armory | Combat units ordered to evacuate 55973 | -4/Armory | Destroyed 27 combat bots 56075 | -4/Armory | Destroyed 8 combat bots 56111 | -4/Armory | Discovered new exit (range 5) 56156 | -4/Armory | Entered Lab 56156 | -4/Lab | Discovered new exit (range 9) 56159 | -4/Lab | Hidden lab's door opened automatically 56159 | -4/Lab | Sensor layout match revealed 56160 | -4/Lab | Gained access to the hidden lab's interior 56165 | -4/Lab | Found Alien Artifact 56165 | -4/Lab | Identified Core Regenerator 56165 | -4/Lab | Used Core Regenerator, restored core integrity (+0) 56170 | -4/Lab | Found Alien Artifact 56170 | -4/Lab | Identified Integrated Mediator 56170 | -4/Lab | Installed Integrated Mediator, increased core attachment efficiency. 56178 | -4/Lab | Found Prototype Energy Gun 56178 | -4/Lab | Identified Hyp. EM Gauss Rifle 56181 | -4/Lab | Found Prototype Energy Gun 56181 | -4/Lab | Identified Tachyon Dispersion Ray 56197 | -4/Lab | Found Alien Artifact 56199 | -4/Lab | Identified Transdimensional Reconstructor 56199 | -4/Lab | Warped through subspace 56209 | -4/Lab | Found Alien Artifact 56212 | -4/Lab | Detected by scanners 56212 | -4/Lab | Disabled Active System Cloaker 56218 | -4/Lab | MAIN.C forces arrive to investigate 56224 | -4/Lab | Confronted by A5 56241 | -4/Lab | Destroyed A5 56265 | -4/Lab | Found Prototype Protection 56265 | -4/Lab | Identified Exp. Powered Armor 56280 | -4/Lab | Entered Research 56281 | -3/Research | Identified exit to Testing 56283 | -3/Research | Loaded intel: 106 machine locations 56284 | -3/Research | Loaded intel: 24 terminal locations 56285 | -3/Research | Loaded intel: 4 garrison access locations 56297 | -3/Research | Garrison activated, responded to threat 56332 | -3/Research | Spotted B-86 Titan 56336 | -3/Research | Destroyed B-86 Titan 56389 | -3/Research | Discovered new exit (range 6) 56404 | -3/Research | Intercept squad dispatched 56439 | -3/Research | Spotted Tracker 56439 | -3/Research | Destroyed Tracker 56440 | -3/Research | Spotted Tracker 56443 | -3/Research | Destroyed Tracker 56480 | -3/Research | Revision forces began assault on 0b10 56681 | -3/Research | Met up with Revision 17++ 56752 | -3/Research | Upgraded with Utility slot (x1) 56979 | -3/Research | Discovered new exit (range 22) 56980 | -3/Research | Research terminal network offline 56993 | -3/Research | Intercept squad dispatched 57058 | -3/Research | Build established: Hacker-Scout 57232 | -3/Research | Spotted Striker 57237 | -3/Research | Spotted Striker 57290 | -3/Research | Entered Testing 57291 | -3/Testing | Loaded intel: 65 machine locations 57292 | -3/Testing | Reached level 31 57297 | -3/Testing | Protovariant out of control (PH-37XGZF80E6) 57311 | -3/Testing | Found Adv. Kinecellerator 57340 | -3/Testing | Found Prototype Energy Cannon 57340 | -3/Testing | Identified Cld. Nova Cannon 57394 | -3/Testing | Discovered new exit (range 19) 57400 | -3/Testing | Spotted Investigator 57402 | -3/Testing | Spotted PP-FNJN2C7JPL 57413 | -3/Testing | Destroyed PP-FNJN2C7JPL 57414 | -3/Testing | Found Exp. Weapon Cycler 57456 | -3/Testing | Spotted Striker 57582 | -3/Testing | Destroyed Investigator 57601 | -3/Testing | Found Prototype Launcher 57601 | -3/Testing | Identified Containment Facilitator 57656 | -3/Testing | Intercept squad dispatched 57660 | -3/Testing | Spotted Tracker 57661 | -3/Testing | Destroyed Tracker 57666 | -3/Testing | Spotted Combat Programmer 57669 | -3/Testing | Destroyed Combat Programmer 57693 | -3/Testing | Entered Research 57694 | -2/Research | Loaded intel: 112 machine locations 57700 | -2/Research | Spotted B-90 Cyclops 57707 | -2/Research | Destroyed B-90 Cyclops 57723 | -2/Research | Identified exit to Quarantine 57791 | -2/Research | Reached level 32 57830 | -2/Research | Intercept squad dispatched 57850 | -2/Research | Spotted Tracker 57851 | -2/Research | Destroyed Tracker 57852 | -2/Research | Spotted Tracker 57853 | -2/Research | Destroyed Tracker 57880 | -2/Research | Spotted Combat Programmer 57881 | -2/Research | Entered Quarantine 57882 | -2/Quarantine | Loaded intel: 79 machine locations 57889 | -2/Quarantine | Garrison activated, responded to threat 57927 | -2/Quarantine | Identified Core Reset Matrix 57963 | -2/Quarantine | Discovered new exit (range 21) 57976 | -2/Quarantine | Found Alien Impact Weapon 57991 | -2/Quarantine | Found Alien Artifact 58015 | -2/Quarantine | Spotted Fortress 58033 | -2/Quarantine | Discovered new exit (range 11) 58035 | -2/Quarantine | Entered Section 7 58036 | -2/Section 7 | Loaded intel: 132 machine locations 58050 | -2/Section 7 | Spotted S7 Guard 58053 | -2/Section 7 | Found Alien Artifact 58059 | -2/Section 7 | Destroyed S7 Guard 58070 | -2/Section 7 | Identified Navigation Efficiency Matrix 58076 | -2/Section 7 | Reached level 33 58130 | -2/Section 7 | Found Alien Artifact 58130 | -2/Section 7 | Identified Spacefold Activator 58138 | -2/Section 7 | Spotted B-90 Cyclops 58147 | -2/Section 7 | Destroyed 13 combat bots 58173 | -2/Section 7 | Destroyed B-90 Cyclops 58183 | -2/Section 7 | Spotted Executioner 58183 | -2/Section 7 | Spotted Executioner 58199 | -2/Section 7 | Found Alien Artifact 58200 | -2/Section 7 | Identified Hpw. Transdimensional Reconstructor 58200 | -2/Section 7 | Warped through subspace 58232 | -2/Section 7 | Spotted B-99 Colossus 58245 | -2/Section 7 | Found Alien Artifact 58245 | -2/Section 7 | Identified Integrated Dissipator 58245 | -2/Section 7 | Installed Integrated Dissipator, increased core heat dissipation (+20) 58246 | -2/Section 7 | Found Integrated Dissipator 58246 | -2/Section 7 | Installed Integrated Dissipator, increased core heat dissipation (+20) 58248 | -2/Section 7 | Found Integrated Dissipator 58248 | -2/Section 7 | Installed Integrated Dissipator, increased core heat dissipation (+20) 58261 | -2/Section 7 | Found Alien Artifact 58261 | -2/Section 7 | Identified LRC Energy Well 58261 | -2/Section 7 | Installed LRC Energy Well, increased energy storage capacity (+250) 58275 | -2/Section 7 | Found Alien Artifact 58275 | -2/Section 7 | Identified Integrated Reactor 58275 | -2/Section 7 | Installed Integrated Reactor, increased core energy generation (+10) 58285 | -2/Section 7 | First assault squad dispatched 58290 | -2/Section 7 | Identified Core Stripper 58300 | -2/Section 7 | Destroyed B-99 Colossus 58312 | -2/Section 7 | Intercept squad dispatched 58330 | -2/Section 7 | Spotted Tracker 58332 | -2/Section 7 | Spotted Tracker 58335 | -2/Section 7 | Destroyed Tracker 58337 | -2/Section 7 | Destroyed Tracker 58343 | -2/Section 7 | Found Transdimensional Reconstructor 58350 | -2/Section 7 | Spotted Combat Programmer 58357 | -2/Section 7 | Warped through subspace 58359 | -2/Section 7 | Found Transdimensional Reconstructor 58362 | -2/Section 7 | Spotted Combat Programmer 58397 | -2/Section 7 | Spotted Alpha 7 58398 | -2/Section 7 | Spotted Alpha 7 58403 | -2/Section 7 | Spotted B-90 Cyclops 58417 | -2/Section 7 | Discovered new exit (range 16) 58430 | -2/Section 7 | Entered Access 58431 | -1/Access | Loaded intel: 100 machine locations 58432 | -1/Access | Reached level 34 58444 | -1/Access | Spotted B-99 Colossus 58515 | -1/Access | Discovered new exit (range 13) 58516 | -1/Access | Spotted B-99 Colossus 58516 | -1/Access | Spotted B-99 Colossus 58520 | -1/Access | Destroyed B-99 Colossus 58546 | -1/Access | Core integrity fell below 50% 58547 | -1/Access | Destroyed B-99 Colossus 58552 | -1/Access | Found Prototype Ballistic Gun 58552 | -1/Access | Identified Multirail 58555 | -1/Access | Found Multirail 58557 | -1/Access | Found Multirail 58559 | -1/Access | Found Multirail 58613 | -1/Access | Garrison activated, responded to threat 58632 | -1/Access | Upgraded with Utility slot (x1) 58680 | -1/Access | First assault squad dispatched 58695 | -1/Access | Garrison activated, responded to threat 58858 | -1/Access | Reached level 35 58866 | -1/Access | Intercept squad dispatched 58902 | -1/Access | Destroyed 13 combat bots 58905 | -1/Access | Spotted Tracker 58906 | -1/Access | Spotted Tracker 58907 | -1/Access | Destroyed Tracker 58909 | -1/Access | Destroyed Tracker 58918 | -1/Access | Spotted Combat Programmer 58921 | -1/Access | Destroyed Combat Programmer 58945 | -1/Access | Spotted Combat Programmer 58952 | -1/Access | Destroyed Combat Programmer 59028 | -1/Access | Destroyed 8 combat bots 59043 | -1/Access | Garrison activated, responded to threat 59043 | -1/Access | High security lockdown imminent 59073 | -1/Access | Discovered new exit (range 14) 59123 | -1/Access | High security lockdown engaged 59168 | -1/Access | Garrison activated, responded to threat 59170 | -1/Access | Destroyed 12 combat bots 59170 | -1/Access | Reached level 36 59215 | -1/Access | Destroyed 7 combat bots 59221 | -1/Access | Upgraded with Weapon slot (x1) 59239 | -1/Access | Intercept squad dispatched 59252 | -1/Access | Spotted Executioner 59255 | -1/Access | Destroyed Executioner 59260 | -1/Access | Spotted Tracker 59260 | -1/Access | Spotted Tracker 59261 | -1/Access | Spotted Tracker 59264 | -1/Access | Destroyed Tracker 59265 | -1/Access | Destroyed Tracker 59267 | -1/Access | Destroyed Tracker 59286 | -1/Access | Spotted Combat Programmer 59291 | -1/Access | Destroyed Combat Programmer 59307 | -1/Access | Spotted Combat Programmer 59308 | -1/Access | Spotted Combat Programmer 59310 | -1/Access | Destroyed Combat Programmer 59315 | -1/Access | Destroyed Combat Programmer 59337 | -1/Access | Spotted Investigator 59338 | -1/Access | Destroyed Investigator 59339 | -1/Access | Spotted Striker 59339 | -1/Access | Spotted Executioner 59342 | -1/Access | Destroyed Executioner 59349 | -1/Access | Destroyed Striker 59418 | -1/Access | Destroyed 45 combat bots 59498 | -1/Access | Reached level 37 59510 | -1/Access | Spotted Executioner 59510 | -1/Access | Spotted Striker 59516 | -1/Access | Destroyed Executioner 59517 | -1/Access | Destroyed Striker 59531 | -1/Access | Sterilization system engaged 59559 | -1/Access | Destroyed 26 combat bots 59774 | -1/Access | Destroyed 27 combat bots 59812 | -1/Access | Spotted B-99 Colossus 59827 | -1/Access | Destroyed B-99 Colossus 59831 | -1/Access | Ambient heat levels rising (+10) 59883 | -1/Access | Destroyed 11 combat bots 59974 | -1/Access | Spotted B-99 Colossus 59974 | -1/Access | Spotted B-99 Colossus 59981 | -1/Access | Ambient heat levels rising (+10) 60111 | -1/Access | Entered Command 60112 | -1/Command | Loaded intel: 60 machine locations 60135 | -1/Command | Phase Generator disabled 60361 | -1/Command | First assault squad dispatched 60404 | -1/Command | Spotted B-99 Colossus 60444 | -1/Command | Reached level 38 60444 | -1/Command | High security lockdown imminent 60524 | -1/Command | High security lockdown engaged 60539 | -1/Command | Destroyed 24 combat bots 60700 | -1/Command | Destroyed 23 combat bots 60726 | -1/Command | Destroyed Investigator 60766 | -1/Command | Destroyed 15 combat bots 60856 | -1/Command | Destroyed Striker 60856 | -1/Command | Spotted Striker 60859 | -1/Command | Spotted Striker 60860 | -1/Command | Spotted Executioner 60864 | -1/Command | Destroyed Striker 60864 | -1/Command | Destroyed Executioner 60868 | -1/Command | Destroyed Striker 60872 | -1/Command | Spotted Striker 60873 | -1/Command | Spotted Striker 60880 | -1/Command | Destroyed Striker 60886 | -1/Command | Destroyed Striker 60929 | -1/Command | Destroyed 27 combat bots 61086 | -1/Command | Destroyed 7 combat bots 61102 | -1/Command | Spotted Striker 61104 | -1/Command | Destroyed Striker 61108 | -1/Command | Spotted Striker 61110 | -1/Command | Destroyed Striker 61116 | -1/Command | Spotted Executioner 61116 | -1/Command | Spotted Executioner 61117 | -1/Command | Destroyed Executioner 61123 | -1/Command | Destroyed Executioner 61173 | -1/Command | Destroyed 25 combat bots 61304 | -1/Command | Spotted Executioner 61304 | -1/Command | Destroyed Executioner 61306 | -1/Command | Spotted Executioner 61306 | -1/Command | Destroyed Executioner 61314 | -1/Command | Spotted Striker 61319 | -1/Command | Spotted Striker 61320 | -1/Command | Destroyed Striker 61327 | -1/Command | Destroyed Striker 61331 | -1/Command | Spotted Striker 61335 | -1/Command | Destroyed Striker 61336 | -1/Command | Spotted Executioner 61341 | -1/Command | Destroyed Executioner 61341 | -1/Command | Spotted Striker 61345 | -1/Command | Destroyed Striker 61353 | -1/Command | Reached level 39 61408 | -1/Command | Destroyed 40 combat bots 61424 | -1/Command | Spotted B-99 Colossus 61433 | -1/Command | Discovered new exit (range 23) 61652 | -1/Command | Destroyed 10 combat bots 61850 | -1/Command | Destroyed 23 combat bots 61986 | -1/Command | Destroyed 44 combat bots 62128 | -1/Command | Destroyed 53 combat bots 62213 | -1/Command | Destroyed 22 combat bots 62302 | -1/Command | Destroyed B-99 Colossus 62356 | -1/Command | Spotted Executioner 62358 | -1/Command | Spotted Executioner 62359 | -1/Command | Destroyed Executioner 62363 | -1/Command | Spotted Executioner 62363 | -1/Command | Destroyed Executioner 62368 | -1/Command | Destroyed Executioner 62368 | -1/Command | Spotted Executioner 62373 | -1/Command | Destroyed Executioner 62388 | -1/Command | Spotted B-99 Colossus 62902 | -1/Command | Destroyed B-99 Colossus 63101 | -1/Command | Destroyed B-99 Colossus 63133 | -1/Command | Spotted Alpha 7 63133 | -1/Command | Spotted Alpha 7 63133 | -1/Command | Spotted Striker 63133 | -1/Command | Spotted Striker 63140 | -1/Command | Destroyed Striker 63154 | -1/Command | Destroyed Alpha 7 63248 | -1/Command | Destroyed Striker 63255 | -1/Command | Destroyed Alpha 7 63267 | -1/Command | Found Exp. Target Analyzer 63603 | -1/Command | Destroyed 91 combat bots 63764 | -1/Command | Reached level 40 63802 | -1/Command | Destroyed 36 combat bots 63915 | -1/Command | Destroyed 11 combat bots 64065 | -1/Command | Spotted Combat Programmer 64071 | -1/Command | Spotted Combat Programmer 64078 | -1/Command | Destroyed Combat Programmer 64081 | -1/Command | Destroyed Combat Programmer 64090 | -1/Command | Spotted M Guard 64101 | -1/Command | Spotted M Guard 64136 | -1/Command | Destroyed M Guard 64141 | -1/Command | Destroyed M Guard 64141 | -1/Command | All MAIN.C guards destroyed 64229 | -1/Command | Found Zero-point Reactor 64315 | -1/Command | Met MAIN.C 64325 | -1/Command | 0b10 Conduit disabled 64352 | -1/Command | Destroyed MAIN.C Shell 64354 | -1/Command | MAIN.C activated Command garrisons 64379 | -1/Command | Destroyed MAIN.C 64398 | -1/Command | Discovered new exit (range 22) 64437 | -1/Command | Destroyed 7 combat bots 64497 | -1/Command | Found Prototype Ballistic Gun 64497 | -1/Command | Identified Hyp. Multirail 64668 | -1/Command | Warped through subspace to slip node 64668 | -1/Command | Discovered new exit (range 4) 64709 | -1/Command | Entered Access_0 64710 | -1/Access_0 | Loaded intel: 60 machine locations 64711 | -1/Access_0 | Met Architect 64722 | -1/Access_0 | Destroyed A8 64728 | -1/Access_0 | Architect warped through subspace 64753 | -1/Access_0 | Subspace Access Node disabled 64757 | -1/Access_0 | Spotted Enhanced Programmer 64757 | -1/Access_0 | Destroyed Enhanced Programmer 64781 | -1/Access_0 | Architect warped through subspace 64826 | -1/Access_0 | Subspace Access Node disabled 64828 | -1/Access_0 | Destroyed 9 combat bots 64845 | -1/Access_0 | Architect warped through subspace 64869 | -1/Access_0 | A6 warped into view 64884 | -1/Access_0 | Destroyed A6 64887 | -1/Access_0 | Spotted Enhanced Programmer 64892 | -1/Access_0 | Destroyed Enhanced Programmer 64921 | -1/Access_0 | Found Prototype Device 64921 | -1/Access_0 | Identified Desublimator 64980 | -1/Access_0 | Architect warped through subspace 65024 | -1/Access_0 | Architect warped through subspace 65031 | -1/Access_0 | Destroyed 7 combat bots 65042 | -1/Access_0 | Spotted Enhanced Programmer 65046 | -1/Access_0 | Destroyed Enhanced Programmer 65074 | -1/Access_0 | Spotted Enhanced Programmer 65078 | -1/Access_0 | Destroyed Enhanced Programmer 65103 | -1/Access_0 | Architect warped through subspace 65121 | -1/Access_0 | Destroyed A2 65123 | -1/Access_0 | Extracted Singularity Gate Test 138-C access codes from A2's data core 65140 | -1/Access_0 | Architect warped through subspace 65142 | -1/Access_0 | Destroyed 8 combat bots 65144 | -1/Access_0 | Spotted Enhanced Programmer 65145 | -1/Access_0 | Destroyed Enhanced Programmer 65156 | -1/Access_0 | A4 warped into view 65173 | -1/Access_0 | Destroyed A4 65193 | -1/Access_0 | Architect warped through subspace 65204 | -1/Access_0 | Started Test 138-B, establishing a local singularity 65240 | -1/Access_0 | Architect warped through subspace 65249 | -1/Access_0 | Spotted Enhanced Programmer 65249 | -1/Access_0 | Destroyed Enhanced Programmer 65292 | -1/Access_0 | Architect warped through subspace 65297 | -1/Access_0 | Spotted Enhanced Programmer 65297 | -1/Access_0 | Destroyed Enhanced Programmer 65331 | -1/Access_0 | Identified Subatomic Replicator 65331 | -1/Access_0 | Used Subatomic Replicator to replicate Sigix Corpse 65333 | -1/Access_0 | Found Sigix Corpse 65346 | -1/Access_0 | Architect warped through subspace 65372 | -1/Access_0 | A3 warped into view 65386 | -1/Access_0 | Destroyed A3 65394 | -1/Access_0 | Architect warped through subspace 65428 | -1/Access_0 | Destroyed 9 combat bots 65453 | -1/Access_0 | Architect warped through subspace 65514 | -1/Access_0 | Spotted Enhanced Programmer 65515 | -1/Access_0 | Destroyed Enhanced Programmer 65532 | -1/Access_0 | Subspace Access Node disabled 65570 | -1/Access_0 | Spotted Enhanced Programmer 65571 | -1/Access_0 | Destroyed Enhanced Programmer 65606 | -1/Access_0 | Subspace Access Node disabled 65632 | -1/Access_0 | Destroyed Architect 65633 | -1/Access_0 | Architect triggered a singularity event 65634 | -1/Access_0 | Extracted unknown sensor trigger ID from Architect's data core 65636 | -1/Access_0 | Found Hpw. Transdimensional Reconstructor 65636 | -1/Access_0 | Warped through subspace to slip node 65636 | -1/Access_0 | Discovered new exit (range 8) 65640 | *** | Escaped singularity! Last Messages --------------- 65631_ HV Slug penetrates Wall. 65631_ Penetrated by Quantum Shear. 65632_ Slug penetrates Architect. 65632_ Architect: "If I can't win, no one wins!" 65632_ Architect destroyed. 65632_ HV Slug penetrates Wall. 65633_ A0_COM: Initiating irreversible singularity event. Goodbye. 65634_ A0_COM: 10. 65634_ Acquired data core, extracted unknown sensor trigger ID. 65634_ Acquired 272 matter. 65635_ A0_COM: 9. 65635_ Dropped Multirail. 65636_ A0_COM: 8. 65636_ Acquired Hpw. Transdimensional Reconstructor. 65636_ Warped through subspace, drawn to slip node. 65636_ EXIT=FOUND 65637_ A0_COM: 7. 65638_ A0_COM: 6. 65639_ A0_COM: 5. 65640_ A0_COM: 4. Map ----- +----------------------------------------------------+ | | | | | | | | | | | | | | | | | | | | | | | | | | | | | | | | | ?????????????????????????????????????????????????? | | ?????????????????????????????????????????????????? | | ?????????????????????????????????????????????????? | | ?????????????????????????????????????????????????? | | ?????????????????????????????????????????????????? | | ?????????????????????????????????????????????????? | | ????????????????????????###??????????????????????? | | ???????????????????????## ##?????????????????????? | | ???????????????????????# #?????????????????????? | | ???????????????????????# @ #?????????????????????? | | ??????????????????????## #?????????????????????? | | ??????????????????????# #?????????????????????? | | ??????????????????????# ##?????????????????????? | | ??????????????????????## #?????????????????????? | | ??????????????????????# #?????????????????????? | | ??????????????????????# ##?????????????????????? | | ??????????????????????# < #?????????????????????? | | ??????????????????????# ##?????????????????????? | | ??????????????????????## #??????????????????????? | | ???????????????????????####??????????????????????? | | ?????????????????????????????????????????????????? | | ?????????????????????????????????????????????????? | | ?????????????????????????????????????????????????? | | ?????????????????????????????????????????????????? | | ?????????????????????????????????????????????????? | | ?????????????????????????????????????????????????? | | ?????????????????????????????????????????????????? | | ?????????????????????????????????????????????????? | | ?????????????????????????????????????????????????? | | ?????????????????????????????????????????????????? | | ?????????????????????????????????????????????????? | | ?????????????????????????????????????????????????? | | ?????????????????????????????????????????????????? | | ?????????????????????????????????????????????????? | +----------------------------------------------------+ Best States ------------- Heat Dissipation 169 Energy Generation 92 Energy Capacity 1240 Matter Stores 700 Matter Capacity 700 Sight Range 27 Robot Scan Range 24 Terrain Scan Range 24 Terrain Scan Density 710 Armor Coverage 400 Resistance: KI 15 Resistance: TH 15 Resistance: EX 10 Weapon Shielding 100 Weapon Cycling 30 Phase Shifting 20 Evasion (%) 89 Targeting Accuracy 12 Target Analysis 10 Recoil Reduction 6 Matter Filtering 30 Kinecelleration 50 Salvage Targeting 1 Offensive Hacking 20 Defensive Hacking 15 Item Schematics ----------------- Imp. Cryofiber Web | -7/Zion | Archive Med. Treads | -7/Zion | Archive Spear | -7/Zion | Archive Fusion Compressor | -7/Zion | Archive Mak. Shrapnel Gun | -7/Zion | Archive Imp. Shock Absorption System | -7/Zion | Archive Imp. Shield Generator | -7/Zion | Archive Imp. Proton Missile Launcher | -7/Zion | Archive Ripper | -7/Zion | Archive Beamcaster | -7/Zion | Archive Mak. Hacking Suite | -7/Zion | Archive EM Shield | -7/Zion | Archive Mak. Kinetic Plating | -7/Zion | Archive Imp. Thermal Shield | -7/Zion | Archive Adv. Sensor Array | -6/Factory | Hacked Rnf. Antimatter Reactor | -6/Factory | Hacked Matter Compressor | -6/Factory | Hacked Combat Drone Bay | -6/Data Miner | Free Lgt. Regenerative Plating | -6/Data Miner | Free Cld. Nuclear Pulse Thruster | -6/Data Miner | Free Exp. Heat Sink | -6/Data Miner | Free Cld. Plasma Rifle | -6/Data Miner | Free Field Propulsion Array | -6/Data Miner | Free Adv. Thermal Shield | -6/Data Miner | Free Hvy. Gauss Cannon | -6/Data Miner | Free Hvy. Disruptor Cannon | -6/Data Miner | Free Nanoactuators | -6/Data Miner | Free Stasis Beam | -6/Data Miner | Free Adv. Heavy Treads | -6/Data Miner | Free Imp. Kinecellerator | -5/Factory | Hacked Cmb. Gravmag System | -5/Factory | Hacked Hyp. Coil Gun | -5/Extension | Hacked Fusion Bomb Launcher | -5/Extension | Hacked Linear Gravjet | -5/Extension | Hacked Hvy. Treads | -5/Extension | Hacked Adv. Weapon Cycler | -5/Hub_04(d) | Hacked Mic. Fission Core | -5/Hub_04(d) | Hacked Lrn. Proton Cannon | -5/Hub_04(d) | Hacked Hvy. Dispersion Rifle | -3/Testing | Archive Cmb. Linear Gravjet | -2/Research | Hacked Quantum Reactor | -1/Command | Hacked Robot Schematics ------------------ H-55 Commando | -7/Zion | Archive A-02 Transporter | -7/Zion | Archive L-31 Rogue | -7/Zion | Archive H-88 Terminator | -7/Zion | Archive R-10 Processor | -6/Data Miner | Free E-15 Imp | -6/Data Miner | Free M-22 Extractor | -6/Data Miner | Free Y-64 Sentinel | -6/Data Miner | Free H-77 Assassin | -6/Data Miner | Free L-61 Swordsman | -6/Data Miner | Free T-07 Excavator | -5/Hub_04(d) | Hacked A-27 Freighter | -4/Factory | Hacked Fabricated ------------ H-88 Terminator | x2 | -6/Factory Alien Tech Used ----------------- Core Regenerator Integrated Mediator Transdimensional Reconstructor Spacefold Activator High-powered Transdimensional Reconstructor Integrated Dissipator LRC Energy Well Integrated Reactor Core Stripper Subatomic Replicator Achievements -------------- Most Wanted Challenges ------------ None RPGLIKE | -11 -10 -10 -9 -9 -9 -8 -8 -7 -7 -7 -7 -7 -6 -6 -6 -6 -6 -6 -6 -5 -5 -5 -5 -5 -5 -4 -4 -4 -3 -3 -2 -2 -2 -1 -1 -1 --------- Run | Scr Mat Min Mat Min Exi Min Mat Fac Low Low Zio Dee Pro Fac Was Fac Low Low Dat Pro Fac Ext Cet Arc Hub Fac Arm Lab Res Tes Res Qua Sec Acc Com Ac0 Levels Raised 39 | . 2 . 5 . . 1 6 2 . 1 . . 1 2 . 1 . 1 . . 1 2 . . 1 2 1 . . 1 1 . 1 4 3 . XP Earned 62612 | 3000 3000 750 6834 1169 243 1500 8033 3524 347 411 82 247 1336 2770 32 2428 132 219 172 811 1278 2507 271 111 1222 2789 1512 261 928 571 1277 671 1145 6422 3956 651 XP Spent 57840 | 2830 1215 . 4760 . 2100 950 7290 . 1650 . . 5100 . 1400 . 3000 . . . . 1400 . . . 3300 725 4150 1100 2650 . . 1250 1500 5200 5170 1100 Upgrades 119 | 13 6 . 12 . 4 4 22 . 5 . . 13 . 2 . 3 . . . . 1 . . . 3 2 5 1 6 . . 1 1 4 10 1 Power Slot 1 | . . . . . . . 1 . . . . . . . . . . . . . . . . . . . . . . . . . . . . . Propulsion Slot 5 | 1 . . . . . . 1 . . . . 1 . . . 1 . . . . . . . . . . 1 . . . . . . . . . Utility Slot 7 | 1 . . 1 . . . 1 . . . . . . . . . . . . . 1 . . . 1 . . . 1 . . . . 1 . . Weapon Slot 4 | 1 . . 2 . . . . . . . . . . . . . . . . . . . . . . . . . . . . . . 1 . . Core Integrity 8 | 2 . . 2 . . . 2 . . . . . . . . . . . . . . . . . . . . . . . . . . . 2 . Heat Dissipation 14 | 2 1 . 1 . . . 3 . . . . 7 . . . . . . . . . . . . . . . . . . . . . . . . Energy Generation 5 | 1 . . . . . . 1 . . . . . . . . . . . . . . . . . 1 . 1 . . . . . . . 1 . Energy Storage 8 | . . . . . . . 4 . . . . 2 . . . . . . . . . . . . . . . . . . . . . . 2 . Matter Storage 8 | . . . . . . 4 . . . . . 2 . . . . . . . . . . . . . 2 . . . . . . . . . . Mass Support 3 | 1 . . . . . . . . . . . . . . . . . . . . . . . . . . . . . . . . . 1 . 1 Inventory Capacity 6 | 1 1 . . . . . 1 . . . . 1 . . . . . . . . . . . . . . . . . . . 1 1 . . . Sight Range 4 | 1 . . . . 3 . . . . . . . . . . . . . . . . . . . . . . . . . . . . . . . Sensor Range 12 | . 3 . 3 . . . . . 4 . . . . . . . . . . . . . . . . . 1 . . . . . . . 1 . Terrain Scan Density 7 | . . . . . . . . . . . . . . . . . . . . . . . . . . . . . 5 . . . . . 2 . Ranged Accuracy 8 | . 1 . 1 . 1 . . . 1 . . . . . . 1 . . . . . . . . . . . . . . . . . 1 2 . Hack Attack % 4 | 1 . . 1 . . . . . . . . . . 1 . . . . . . . . . . 1 . . . . . . . . . . . Hack Defense % 3 | 1 . . 1 . . . . . . . . . . 1 . . . . . . . . . . . . . . . . . . . . . . KI Resistance % 3 | . . . . . . . 2 . . . . . . . . . . . . . . . . . . . 1 . . . . . . . . . TH Resistance % 3 | . . . . . . . 2 . . . . . . . . . . . . . . . . . . . 1 . . . . . . . . . EX Resistance % 2 | . . . . . . . 2 . . . . . . . . . . . . . . . . . . . . . . . . . . . . . KI Damage % 4 | . . . . . . . 2 . . . . . . . . 1 . . . . . . . . . . . 1 . . . . . . . . Protomatter Created 37726 | . 118 36 465 7 147 146 1628 1264 80 128 268 2298 369 760 433 2468 167 331 74 565 659 1772 190 81 1855 2897 3400 62 381 624 285 157 334 4448 7508 1321 Integrity Restored 13444 | . 252 66 1434 56 315 490 643 772 214 178 152 742 32 103 . 213 . 47 23 28 176 253 50 5 781 398 833 123 90 58 97 33 354 1988 1596 849 Core 9372 | . 252 66 1171 33 306 222 434 728 34 82 109 430 13 64 . 146 . 34 18 22 131 191 39 4 555 282 512 99 68 39 68 30 271 1172 1098 649 Parts 4072 | . . . 263 23 9 268 209 44 180 96 43 312 19 39 . 67 . 13 5 6 45 62 11 1 226 116 321 24 22 19 29 3 83 816 498 200 Protomatter Decayed 37155 | . . 49 89 39 36 21 1322 1030 4 60 169 2077 353 828 259 2416 167 357 . 561 590 1772 163 78 2091 2700 3633 153 1649 649 118 211 288 4004 8207 1012 Game ------ Seed PowerRiotDerivative Manual? 0 Play Time 08:51:57 Cumulative 576.2 hours Start 2021.12.27 @ 10:17:34 End 2021.12.27 @ 22:16:40 Sessions 1 Manual Loads 0 Difficulty Rogue Special Mode Winter2019/RPGLIKE Game No. 248 Rogue 247 Adventurer 1 Explorer 0 Win Type 6 Total 48 Types 13/6/7/3/1/0/17/1/0 Lore% 95 Gallery% 98 Achievement% 86 Wizard Run 0 Options --------- ASCII 1 Keyboard 1 Movement Numpad Keybinds 0 Fullscreen 0 Font 18/Smallcaps Map View 76x50 Tactical HUD 1 Map Filters NONE Filters NONE Steam X RUN: 6da0424c-8a50-422b-bee4-a2b3c8ae3e6c